Workbook

Sheet Information
A8: Fachverband Hotellerie
A12: Fragenkatalog für Mystery Guest-Check
A13: (Information)
A25: Arbeitsunterlage, 13.10.2010 | B25: Arbeitsunterlage 14.4.2015
B36: Die vorliegende Arbeitsunterlage ermöglicht Ihnen - unabhängig von Konzept und Positionierung des zu prüfenden Betriebes - eine Auswahl des passenden Fragenkataloges je nach Angebot.
B48: Rückfragehinweis:
B49: Mag. Matthias Koch/ Katrin Sagmeister, MA/ Nina Pavicevic/ Andrea Gloser
B50: Fachverband Hotellerie
B51: Wiedner Hauptstraße 63
B52: 1045 Wien
B53: T: 0590900/3554 F: 0590900/3568
B54: E: hotelsterne@wko.at
B57: Wien, 14.4.2015

Sheet Varianten
A8: Fachverband Hotellerie
A12: Fragenkatalog für Mystery Guest-Check
A13: (Varianten)
A25: Arbeitsunterlage 14.4.2015
A36: Variante | B36: Anzahl Kriterien | C36: Faktor
A37: ohne Zusatzangebot | B37: 380 | C37: =100/B37 -> 0.2631578947
A39: inkl. Spa | B39: 404 | C39: =100/B39 -> 0.2475247525
A40: inkl. Freizeit oder Tagung | B40: 403 | C40: =100/B40 -> 0.2481389578
A41: inkl. Spa + 1 Modul | B41: 427 | C41: =100/B41 -> 0.2341920375
A42: inkl. Freizeit und Tagung | B42: 426 | C42: =100/B42 -> 0.234741784
A43: inkl. 3 Modulen/gesamt | B43: 450 | C43: =100/B43 -> 0.2222222222
A58: Rückfragehinweis:
A59: Mag. Matthias Koch/ Katrin Sagmeister, MA/ Nina Pavicevic/ Andrea Gloser
A60: Fachverband Hotellerie
A61: Wiedner Hauptstraße 63
A62: 1045 Wien
A63: T: 0590900/3554 F: 0590900/3568
A64: E: hotelsterne@wko.at
A67: Wien, 14.4.2015

Sheet gesamt
C7: Fachverband Hotellerie
C11: Fragenkatalog für Mystery Guest-Check
C18: Arbeitsunterlage, 14.4.2015
C24: Dies ist die Auflistung der erforderlichen Prüfkriterien für Firmen, die einen Mystery-Test im Rahmen der Österreichischen Hotelklassifizierung durchführen. Über die Listung einer Firma entscheidet die Lenkungskommission bzw. der Fachverband Hotellerie nach Prüfung der Voraussetzungen.
C26: positiv erfülltes Kriterium | D26: 1
C27: negativ erfülltes Kriterium | D27: 0
C30: 1. Web-Auftritt
E31: Kommentar
A32: 1 | B32: 1 | C32: Nachvollziehbare Webadresse | D32: 1
A33: 2 | B33: 2 | C33: Funktionieren alle Links | D33: 1
A34: 3 | B34: 3 | C34: Übersichtlichkeit | D34: 1
A35: 4 | B35: 4 | C35: Such-Funktion | D35: 1
A36: 5 | B36: 5 | C36: Integriertes Gästefeedback | D36: 1
A37: 6 | B37: 6 | C37: Tipp-, Rechtschreib- und Grammatikfehler | D37: 1
A38: 7 | B38: 7 | C38: Aussagekräftiger, realistischer Auftritt mit Hotelbildern | D38: 1
A39: 8 | B39: 8 | C39: Aktualität | D39: 1
A40: 9 | B40: 9 | C40: Impressum | D40: 1
A41: 10 | B41: 10 | C41: Übersetzung in mindestens eine Fremdsprache (ab 3* verpflichtend) | D41: 1
A42: 11 | B42: 11 | C42: Kontaktangabe (Email, Telefon, etc.) | D42: 1
A43: 12 | B43: 12 | C43: Online-Buchbarkeit auf eigener Website | D43: 1
A44: 13 | B44: 13 | C44: Anfahrtsplan | D44: 1
A45: 14 | B45: 14 | C45: Allgemeinen Geschäftsbedingungen oder Stornobedingungen vorhanden | D45: 1
C46: Anzahl der erfüllten Kriterien | D46: =SUM(D32:D45) -> 14
C47: Multiplikation der Anzahl der erfüllten Kriterien mit | D47: =D768 -> 0.2222222222
C48: Maximale Summe | D48: =D47*B45 -> 3.111111111
C49: Erreichte Punktanzahl | D49: =D46*D47 -> 3.111111111
C51: Kommentar
C53: 2. E-Mail und Post
C55: Beantwortung Ihrer E-Mail Anfrage, | E55: Kommentar
A56: 15 | B56: 1 | C56: Innerhalb … Stunden ab Anfrage (3*S - 12; 4*S - 8; 5*/5*S - 4) | D56: 1
A57: 16 | B57: 2 | C57: Qualität (Schreibstil, Wortwahl, korrekte Anrede, Rechtsschreibung) | D57: 1
A58: 17 | B58: 3 | C58: Informationsgehalt (z.B. Zusatzangebote), | D58: 1
A59: 18 | B59: 4 | C59: Individuelle Bearbeitung | D59: 1
A60: 19 | B60: 5 | C60: Bei Angebot: Angaben zu Stornobedingungen, | D60: 1
C64: Reservierungs-Bestätigung (E-Mail, Fax) als Antwort auf Ihre Buchung | E64: Kommentar
A65: 20 | B65: 6 | C65: Innerhalb … Stunden ab Reservierung (3*S - 24; 4*S - 12; 5*/5*S - 8) | D65: 1
A66: 21 | B66: 7 | C66: Qualität (Schreibstil, Wortwahl, korrekte Anrede, Rechtsschreibung) | D66: 1
A67: 22 | B67: 8 | C67: Informationsgehalt (u.a. Aktuelle Anfahrtsbeschreibung), | D67: 1
A68: 23 | B68: 9 | C68: Angaben zu Stornobedingungen | D68: 1
C72: Unterlagen per Post | E72: Kommentar
A73: 24 | B73: 10 | C73: Zusendung innerhalb von 3 Werktagen | D73: 1
A74: 25 | B74: 11 | C74: Begleitschreiben | D74: 1
A75: 26 | B75: 12 | C75: Qualität (Schreibstil, Wortwahl, korrekte Anrede, Rechtsschreibung) | D75: 1
A76: 27 | B76: 13 | C76: Informationsgehalt (z.B. Zusatzangebote), | D76: 1
A77: 28 | B77: 14 | C77: Individuelle Bearbeitung | D77: 1
A78: 29 | B78: 15 | C78: Qualitativ entsprechende Unterlagen, Prospekte | D78: 1
C79: Anzahl der erfüllten Kriterien | D79: =SUM(D56:D78) -> 15
C80: Multiplikation der Anzahl der erfüllten Kriterien mit | D80: =D768 -> 0.2222222222
C81: Maximale Summe | D81: =D80*B78 -> 3.333333333
C82: Erreichte Punktanzahl | D82: =D80*D79 -> 3.333333333
C84: Kommentar
C87: 3. Telefon
E88: Kommentar
A89: 30 | B89: 1 | C89: Wartezeit (3*S - 1 Min; 4*S - 30 Sek; 5*/5*S - 15 Sek) | D89: 1
A90: 31 | B90: 2 | C90: Während der Wartezeit Text- bzw. Tonschleife | D90: 1
A91: 32 | B91: 3 | C91: Herzlichkeit | D91: 1
A92: 33 | B92: 4 | C92: Klare deutliche Stimme und Aussprache | D92: 1
A93: 34 | B93: 5 | C93: Mit Namen angesprochen | D93: 1
A94: 35 | B94: 6 | C94: Vollständige Datenaufnahme (z.B. Adresse, Tel, Email-Nachfrage), | D94: 1
A95: 36 | B95: 7 | C95: Fachliche Kompetenz | D95: 1
A96: 37 | B96: 8 | C96: An- und Abreisedatum wiederholt und bestätigt | D96: 1
A97: 38 | B97: 9 | C97: Informationen über Kategorien | D97: 1
A98: 39 | B98: 10 | C98: Informationen über Preise | D98: 1
A99: 40 | B99: 11 | C99: Informationen über Zahlungsmodalitäten | D99: 1
A100: 41 | B100: 12 | C100: Informationen über Leistungen | D100: 1
A101: 42 | B101: 13 | C101: Informationen über Check-in-Zeiten | D101: 1
A102: 43 | B102: 14 | C102: Informationen über Zusatzangebote | D102: 1
A103: 44 | B103: 15 | C103: Anfahrts-, Wegbeschreibung | D103: 1
A104: 45 | B104: 16 | C104: Angebot zur vorläufigen Einbuchung | D104: 1
A105: 46 | B105: 17 | C105: Hinweis auf Stornobedingungen | D105: 1
A106: 47 | B106: 18 | C106: Freundliche Verabschiedung und Dank | D106: 1
C107: Anzahl der erfüllten Kriterien | D107: =SUM(D89:D106) -> 18
C108: Multiplikation der Anzahl der erfüllten Kriterien mit | D108: =D768 -> 0.2222222222
C109: Maximale Summe | D109: =D108*B106 -> 4
C110: Erreichte Punktanzahl | D110: =D108*D107 -> 4
C112: Kommentar
C115: 4. Anreise und Außenanlage
E116: Kommentar
A117: 48 | B117: 1 | C117: Auffindbarkeit (z.B. Beschilderung im Ort) | D117: 1
A118: 49 | B118: 2 | C118: Zufahrtsmöglichkeit | D118: 1
A119: 50 | B119: 3 | C119: Parkplätze | D119: 1
A120: 51 | B120: 4 | C120: Garagenplätze | D120: 1
A121: 52 | B121: 5 | C121: Beleuchtung | D121: 1
A122: 53 | B122: 6 | C122: Gepäckservice | D122: 1
A123: 54 | B123: 7 | C123: Einfache Orientierung | D123: 1
A124: 55 | B124: 8 | C124: Sauberkeit und Zustand | D124: 1
A125: 56 | B125: 9 | C125: Parkservice (z.B. Doorman, Wagenmeiser) | D125: 1
C126: Anzahl der erfüllten Kriterien | D126: =SUM(D117:D125) -> 9
C127: Multiplikation der Anzahl der erfüllten Kriterien mit | D127: =D768 -> 0.2222222222
C128: Maximale Summe | D128: =D127*B125 -> 2
C129: Erreichte Punktanzahl | D129: =D127*D126 -> 2
C131: Kommentar
C134: 5. Check-In
C136: Eingang | E136: Kommentar
A137: 57 | B137: 1 | C137: Raumklima (Geruch) | D137: 1
A138: 58 | B138: 2 | C138: Raumtemperatur | D138: 1
A139: 59 | B139: 3 | C139: Beleuchtung ausreichend | D139: 1
A140: 60 | B140: 4 | C140: Ambiente/Atmosphäre | D140: 1
A141: 61 | B141: 5 | C141: Entsprechend qualitatives Mobiliar | D141: 1
A142: 62 | B142: 6 | C142: Sauberkeit und Ordnung | D142: 1
A143: 63 | B143: 7 | C143: Stimmige Dekorationen | D143: 1
A144: 64 | B144: 8 | C144: Großzügiger Sitzbereich für Gäste | D144: 1
A145: 65 | B145: 9 | C145: Erscheinungsbild Check-In-Bereich (Front Office - Sauberkeit, Ordnung) | D145: 1
C149: Front Office Mitarbeiter | E149: Kommentar
A150: 66 | B150: 10 | C150: Anwesenheit | D150: 1
A151: 67 | B151: 11 | C151: Begrüßung (z.B. Welcome Drink) | D151: 1
A152: 68 | B152: 12 | C152: Herzlichkeit, Freundlichkeit | D152: 1
A153: 69 | B153: 13 | C153: Erscheinungsbild Mitarbeiter (z.B. Uniform, Namensschild) | D153: 1
A154: 70 | B154: 14 | C154: Fachkompetenz | D154: 1
A155: 71 | B155: 15 | C155: Fremdsprachenkenntnisse | D155: 1
A156: 72 | B156: 16 | C156: Aufmerksamkeit | D156: 1
A157: 73 | B157: 17 | C157: Sorgfältigkeit | D157: 1
A158: 74 | B158: 18 | C158: Effizienz (Schnelligkeit, Flexibilität) | D158: 1
A159: 75 | B159: 19 | C159: Hilfsbereitschaft | D159: 1
A160: 76 | B160: 20 | C160: Klare, gut verständliche Aussprache | D160: 1
A161: 77 | B161: 21 | C161: Gast mit Namen angesprochen | D161: 1
A162: 78 | B162: 22 | C162: Vorbereiteter Meldezettel | D162: 1
A163: 79 | B163: 23 | C163: Gepäcksservice angeboten | D163: 1
A164: 80 | B164: 24 | C164: Begleitung auf das Zimmer angeboten | D164: 1
A165: 81 | B165: 25 | C165: Allgemeine Haus-Informationen angeboten bzw. gegeben | D165: 1
A166: 82 | B166: 26 | C166: Angenehmen Aufenthalt gewünscht | D166: 1
C170: Begleitung zum Zimmer | E170: Kommentar
A171: 83 | B171: 27 | C171: Erscheinungsbild des Mitarbeiters | D171: 1
A172: 84 | B172: 28 | C172: Freundlichkeit, Konversation | D172: 1
C176: Rooming | E176: Kommentar
A177: 85 | B177: 29 | C177: Hinweis auf Hauptschalter (für Strom im Zimmer) | D177: 1
A178: 86 | B178: 30 | C178: Hinweis auf Heizung oder Klimaanlage | D178: 1
A179: 87 | B179: 31 | C179: Telefon (schriftliche Infos ausreichend) | D179: 1
A180: 88 | B180: 32 | C180: Telefonverzeichnis bzw. -nummern (für Zimmerservice) - schriftliche Infos ausreichend | D180: 1
A181: 89 | B181: 33 | C181: Minibar oder Maxibar (bis 4*) auf jeder Etage (schriftliche Infos ausreichend) | D181: 1
A182: 90 | B182: 34 | C182: Safe (schriftliche Infos ausreichend) | D182: 1
A183: 91 | B183: 35 | C183: Wäscherei-Service (schriftliche Infos ausreichend) | D183: 1
A184: 92 | B184: 36 | C184: Bügel-Service (schriftliche Infos ausreichend) | D184: 1
A185: 93 | B185: 37 | C185: Öffnungszeiten Restaurant, Bar (schriftliche Infos ausreichend) | D185: 1
A186: 94 | B186: 38 | C186: Zeitangabe Frühstück (schriftliche Infos ausreichend) | D186: 1
A187: 95 | B187: 39 | C187: Rezeption 24 Std. erreichbar und … Std. besetzt (3*S - 14; 4*S - 16; 5*/5*S - 24) | D187: 1
C188: Anzahl der erfüllten Kriterien | D188: =SUM(D137:D187) -> 39
C189: Multiplikation der Anzahl der erfüllten Kriterien mit | D189: =D768 -> 0.2222222222
C190: Maximale Summe | D190: =D189*B187 -> 8.666666667
C191: Erreichte Punktanzahl | D191: =D189*D188 -> 8.666666667
C193: Kommentar
C196: 6. Zimmer
C198: Erster Eindruck und Allgemeiner Charakter | E198: Kommentar
A199: 96 | B199: 1 | C199: Raumklima (Frischer Geruch) | D199: 1
A200: 97 | B200: 2 | C200: Angenehme Temperatur | D200: 1
A201: 98 | B201: 3 | C201: Atmosphäre (Wohlfühlcharakter) | D201: 1
A202: 99 | B202: 4 | C202: Geräuschpegel (Ruhe) | D202: 1
A203: 100 | B203: 5 | C203: Entsprechendes Mobiliar | D203: 1
A204: 101 | B204: 6 | C204: Sauberkeit | D204: 1
A205: 102 | B205: 7 | C205: Willkommensbrief/-karte | D205: 1
A206: 103 | B206: 8 | C206: Willkommensgruß (z.B. Blumen, Obst, Konfekt…) | D206: 1
A207: 104 | B207: 9 | C207: Türschloss in einwandfreiem Zustand | D207: 1
C211: Das Bett | E211: Kommentar
A212: 105 | B212: 10 | C212: Dem Hotelstandard angemessen | D212: 1
A213: 106 | B213: 11 | C213: Qualität der Bettbezüge angemessen | D213: 1
A214: 107 | B214: 12 | C214: Matratze/Liegekomfort | D214: 1
A215: 108 | B215: 13 | C215: Bettdecken der Jahreszeit angepasst | D215: 1
A216: 109 | B216: 14 | C216: Zusatzkissen auf Wunsch (kein Zierkissen) | D216: 1
A217: 110 | B217: 15 | C217: Zusatzdecke auf Wunsch | D217: 1
A218: 111 | B218: 16 | C218: Zwei Kopfkissen pro Gast (kein Zierkissen) | D218: 1
A219: 112 | B219: 17 | C219: Auswahl verschiedener Kopfkissen | D219: 1
A220: 113 | B220: 18 | C220: Allergikerfreundliche Bettwäsche auf Wunsch | D220: 1
C221: Einrichtung | E221: Kommentar
A222: 114 | B222: 19 | C222: Qualität und Zustand der Vorhänge | D222: 1
A223: 115 | B223: 20 | C223: Verdunkelung mit Vorhängen möglich | D223: 1
A224: 116 | B224: 21 | C224: Schalter, Steckdosen leicht erreichbar | D224: 1
A225: 117 | B225: 22 | C225: Einwandfreie Wände | D225: 1
A226: 118 | B226: 23 | C226: Einwandfreie Beleuchtung | D226: 1
A227: 119 | B227: 24 | C227: Einwandfreie Einrichtung (Mobiliar) | D227: 1
A228: 120 | B228: 25 | C228: Angemessene Anzahl einheitlicher Kleiderbügel (Kein Draht) bis inkl. 3*; verschiedene Bügelarten 4*, 5*; | D228: 1
A229: 121 | B229: 26 | C229: Geräumige Ablagemöglichkeiten | D229: 1
A230: 122 | B230: 27 | C230: Geräumige Hängevorrichtung in den Kästen | D230: 1
C234: Ausstattung und Services | E234: Kommentar
A235: 123 | B235: 28 | C235: Radio- und TV-Programme gut eingestellt | D235: 1
A236: 124 | B236: 29 | C236: Programmverzeichnis vorhanden | D236: 1
A237: 125 | B237: 30 | C237: Aktuelles Fernsehprogramm aufgelegt | D237: 1
A238: 126 | B238: 31 | C238: Schreibmappe mit Schreibgeräten (ab 5* verpflichtend) | D238: 1
A239: 127 | B239: 32 | C239: Telefon mit der Möglichkeit direkt nach innen und außen zu telefonieren | D239: 1
A240: 128 | B240: 33 | C240: Mindestens zweisprachige Bedienungsanleitung für Telefon | D240: 1
A241: 129 | B241: 34 | C241: Schreibblock und einen Bleistift neben Telefon | D241: 1
A242: 130 | B242: 35 | C242: Modemanschluss im Betrieb (bzw. gleichwertiger Internetzugang für den Gast verfügbar) | D242: 1
A243: 131 | B243: 36 | C243: Internetanschluss im Zimmer (W-Lan oder Buchse) | D243: 1
A244: 132 | B244: 37 | C244: Internet-Endgerät auf dem Zimmer auf Wunsch | D244: 1
A245: 133 | B245: 38 | C245: Einwandfreie Funktionalität aller elektrischen Einrichtungen (z.B. Licht, TV, Fön) | D245: 1
A246: 134 | B246: 39 | C246: Safe im Zimmer | D246: 1
A247: 135 | B247: 40 | C247: Wecker (oder Weckfunktion über das TV-Gerät, Telefon) | D247: 1
A248: 136 | B248: 41 | C248: Alternatives Weckservice (Verlässlichkeit, Freundlichkeit) | D248: 1
A249: 137 | B249: 42 | C249: "Bitte nicht stören/Bitte aufräumen" Angabemöglichkeit vorhanden | D249: 1
A250: 138 | B250: 43 | C250: Zustand und Aktualität der aufgelegten Info-Mappe | D250: 1
A251: 139 | B251: 44 | C251: Sicherheitsbestimmungen (z.B. Brandschutz, Fluchtwege) sichtbar | D251: 1
A252: 140 | B252: 45 | C252: Zimmerpreise aufgehängt oder in Infomappe | D252: 1
A253: 141 | B253: 46 | C253: Aufgelegtes Gästemagazin | D253: 1
A254: 142 | B254: 47 | C254: Zeitungs-, Magazinservice | D254: 1
A255: 143 | B255: 48 | C255: Mehrsprachiger Serviceleitfaden A-Z (3*S: mind. zweisprachig; 4*S, 5*, 5*S: mind. dreisprachig) | D255: 1
A256: 144 | B256: 49 | C256: Ladegeräte/Adapter auf Wunsch (z.B. für elektronische Geräte wie Handys, Tabletts..) | D256: 1
A257: 145 | B257: 50 | C257: Internationaler Steckdosenadapter auf Wunsch | D257: 1
A258: 146 | B258: 51 | C258: Mindestens zwei Trinkgläser auf Untersetzer (z.B. Serviette) | D258: 1
A259: 147 | B259: 52 | C259: Getränke im Roomservice (4* - 16h; 5* - 24h) | D259: 1
A260: 148 | B260: 53 | C260: Speisen im Roomservice (4* - 14h; 5* - 24h) | D260: 1
A261: 149 | B261: 54 | C261: Frühstückskarte im Roomservice | D261: 1
... 418 more rows

Sheet SPA + Freizeit
C7: Fachverband Hotellerie
C11: Fragenkatalog für Mystery Guest-Check
C18: Arbeitsunterlage, 14.4.2015
C24: Dies ist die Auflistung der erforderlichen Prüfkriterien für Firmen, die einen Mystery-Test im Rahmen der Österreichischen Hotelklassifizierung durchführen. Über die Listung einer Firma entscheidet die Lenkungskommission bzw. der Fachverband Hotellerie nach Prüfung der Voraussetzungen.
C26: positiv erfülltes Kriterium | D26: 1
C27: negativ erfülltes Kriterium | D27: 0
C30: 1. Web-Auftritt
E31: Kommentar
A32: 1 | B32: 1 | C32: Nachvollziehbare Webadresse | D32: 1
A33: 2 | B33: 2 | C33: Funktionieren alle Links | D33: 1
A34: 3 | B34: 3 | C34: Übersichtlichkeit | D34: 1
A35: 4 | B35: 4 | C35: Such-Funktion | D35: 1
A36: 5 | B36: 5 | C36: Integriertes Gästefeedback | D36: 1
A37: 6 | B37: 6 | C37: Tipp-, Rechtschreib- und Grammatikfehler | D37: 1
A38: 7 | B38: 7 | C38: Aussagekräftiger, realistischer Auftritt mit Hotelbildern | D38: 1
A39: 8 | B39: 8 | C39: Aktualität | D39: 1
A40: 9 | B40: 9 | C40: Impressum | D40: 1
A41: 10 | B41: 10 | C41: Übersetzung in mindestens eine Fremdsprache (ab 3* verpflichtend) | D41: 1
A42: 11 | B42: 11 | C42: Kontaktangabe (Email, Telefon, etc.) | D42: 1
A43: 12 | B43: 12 | C43: Online-Buchbarkeit auf eigener Website | D43: 1
A44: 13 | B44: 13 | C44: Anfahrtsplan | D44: 1
A45: 14 | B45: 14 | C45: Allgemeinen Geschäftsbedingungen oder Stornobedingungen vorhanden | D45: 1
C46: Anzahl der erfüllten Kriterien | D46: =SUM(D32:D45) -> 14
C47: Multiplikation der Anzahl der erfüllten Kriterien mit | D47: =D733 -> 0.2341920375
C48: Maximale Summe | D48: =D47*B45 -> 3.278688525
C49: Erreichte Punktanzahl | D49: =D46*D47 -> 3.278688525
C51: Kommentar
C53: 2. E-Mail und Post
C55: Beantwortung Ihrer E-Mail Anfrage, | E55: Kommentar
A56: 15 | B56: 1 | C56: Innerhalb … Stunden ab Anfrage (3*S - 12; 4*S - 8; 5*/5*S - 4) | D56: 1
A57: 16 | B57: 2 | C57: Qualität (Schreibstil, Wortwahl, korrekte Anrede, Rechtsschreibung) | D57: 1
A58: 17 | B58: 3 | C58: Informationsgehalt (z.B. Zusatzangebote), | D58: 1
A59: 18 | B59: 4 | C59: Individuelle Bearbeitung | D59: 1
A60: 19 | B60: 5 | C60: Bei Angebot: Angaben zu Stornobedingungen, | D60: 1
C64: Reservierungs-Bestätigung (E-Mail, Fax) als Antwort auf Ihre Buchung | E64: Kommentar
A65: 20 | B65: 6 | C65: Innerhalb … Stunden ab Reservierung (3*S - 24; 4*S - 12; 5*/5*S - 8) | D65: 1
A66: 21 | B66: 7 | C66: Qualität (Schreibstil, Wortwahl, korrekte Anrede, Rechtsschreibung) | D66: 1
A67: 22 | B67: 8 | C67: Informationsgehalt (u.a. Aktuelle Anfahrtsbeschreibung), | D67: 1
A68: 23 | B68: 9 | C68: Angaben zu Stornobedingungen | D68: 1
C72: Unterlagen per Post | E72: Kommentar
A73: 24 | B73: 10 | C73: Zusendung innerhalb von 3 Werktagen | D73: 1
A74: 25 | B74: 11 | C74: Begleitschreiben | D74: 1
A75: 26 | B75: 12 | C75: Qualität (Schreibstil, Wortwahl, korrekte Anrede, Rechtsschreibung) | D75: 1
A76: 27 | B76: 13 | C76: Informationsgehalt (z.B. Zusatzangebote), | D76: 1
A77: 28 | B77: 14 | C77: Individuelle Bearbeitung | D77: 1
A78: 29 | B78: 15 | C78: Qualitativ entsprechende Unterlagen, Prospekte | D78: 1
C79: Anzahl der erfüllten Kriterien | D79: =SUM(D56:D78) -> 15
C80: Multiplikation der Anzahl der erfüllten Kriterien mit | D80: =D733 -> 0.2341920375
C81: Maximale Summe | D81: =D80*B78 -> 3.512880562
C82: Erreichte Punktanzahl | D82: =D80*D79 -> 3.512880562
C84: Kommentar
C87: 3. Telefon
E88: Kommentar
A89: 30 | B89: 1 | C89: Wartezeit (3*S - 1 Min; 4*S - 30 Sek; 5*/5*S - 15 Sek) | D89: 1
A90: 31 | B90: 2 | C90: Während der Wartezeit Text- bzw. Tonschleife | D90: 1
A91: 32 | B91: 3 | C91: Herzlichkeit | D91: 1
A92: 33 | B92: 4 | C92: Klare deutliche Stimme und Aussprache | D92: 1
A93: 34 | B93: 5 | C93: Mit Namen angesprochen | D93: 1
A94: 35 | B94: 6 | C94: Vollständige Datenaufnahme (z.B. Adresse, Tel, Email-Nachfrage), | D94: 1
A95: 36 | B95: 7 | C95: Fachliche Kompetenz | D95: 1
A96: 37 | B96: 8 | C96: An- und Abreisedatum wiederholt und bestätigt | D96: 1
A97: 38 | B97: 9 | C97: Informationen über Kategorien | D97: 1
A98: 39 | B98: 10 | C98: Informationen über Preise | D98: 1
A99: 40 | B99: 11 | C99: Informationen über Zahlungsmodalitäten | D99: 1
A100: 41 | B100: 12 | C100: Informationen über Leistungen | D100: 1
A101: 42 | B101: 13 | C101: Informationen über Check-in-Zeiten | D101: 1
A102: 43 | B102: 14 | C102: Informationen über Zusatzangebote | D102: 1
A103: 44 | B103: 15 | C103: Anfahrts-, Wegbeschreibung | D103: 1
A104: 45 | B104: 16 | C104: Angebot zur vorläufigen Einbuchung | D104: 1
A105: 46 | B105: 17 | C105: Hinweis auf Stornobedingungen | D105: 1
A106: 47 | B106: 18 | C106: Freundliche Verabschiedung und Dank | D106: 1
C107: Anzahl der erfüllten Kriterien | D107: =SUM(D89:D106) -> 18
C108: Multiplikation der Anzahl der erfüllten Kriterien mit | D108: =D733 -> 0.2341920375
C109: Maximale Summe | D109: =D108*B106 -> 4.215456674
C110: Erreichte Punktanzahl | D110: =D108*D107 -> 4.215456674
C112: Kommentar
C115: 4. Anreise und Außenanlage
E116: Kommentar
A117: 48 | B117: 1 | C117: Auffindbarkeit (z.B. Beschilderung im Ort) | D117: 1
A118: 49 | B118: 2 | C118: Zufahrtsmöglichkeit | D118: 1
A119: 50 | B119: 3 | C119: Parkplätze | D119: 1
A120: 51 | B120: 4 | C120: Garagenplätze | D120: 1
A121: 52 | B121: 5 | C121: Beleuchtung | D121: 1
A122: 53 | B122: 6 | C122: Gepäckservice | D122: 1
A123: 54 | B123: 7 | C123: Einfache Orientierung | D123: 1
A124: 55 | B124: 8 | C124: Sauberkeit und Zustand | D124: 1
A125: 56 | B125: 9 | C125: Parkservice (z.B. Doorman, Wagenmeiser) | D125: 1
C126: Anzahl der erfüllten Kriterien | D126: =SUM(D117:D125) -> 9
C127: Multiplikation der Anzahl der erfüllten Kriterien mit | D127: =D733 -> 0.2341920375
C128: Maximale Summe | D128: =D127*B125 -> 2.107728337
C129: Erreichte Punktanzahl | D129: =D127*D126 -> 2.107728337
C131: Kommentar
C134: 5. Check-In
C136: Eingang | E136: Kommentar
A137: 57 | B137: 1 | C137: Raumklima (Geruch) | D137: 1
A138: 58 | B138: 2 | C138: Raumtemperatur | D138: 1
A139: 59 | B139: 3 | C139: Beleuchtung ausreichend | D139: 1
A140: 60 | B140: 4 | C140: Ambiente/Atmosphäre | D140: 1
A141: 61 | B141: 5 | C141: Entsprechend qualitatives Mobiliar | D141: 1
A142: 62 | B142: 6 | C142: Sauberkeit und Ordnung | D142: 1
A143: 63 | B143: 7 | C143: Stimmige Dekorationen | D143: 1
A144: 64 | B144: 8 | C144: Großzügiger Sitzbereich für Gäste | D144: 1
A145: 65 | B145: 9 | C145: Erscheinungsbild Check-In-Bereich (Front Office - Sauberkeit, Ordnung) | D145: 1
C149: Front Office Mitarbeiter | E149: Kommentar
A150: 66 | B150: 10 | C150: Anwesenheit | D150: 1
A151: 67 | B151: 11 | C151: Begrüßung (z.B. Welcome Drink) | D151: 1
A152: 68 | B152: 12 | C152: Herzlichkeit, Freundlichkeit | D152: 1
A153: 69 | B153: 13 | C153: Erscheinungsbild Mitarbeiter (z.B. Uniform, Namensschild) | D153: 1
A154: 70 | B154: 14 | C154: Fachkompetenz | D154: 1
A155: 71 | B155: 15 | C155: Fremdsprachenkenntnisse | D155: 1
A156: 72 | B156: 16 | C156: Aufmerksamkeit | D156: 1
A157: 73 | B157: 17 | C157: Sorgfältigkeit | D157: 1
A158: 74 | B158: 18 | C158: Effizienz (Schnelligkeit, Flexibilität) | D158: 1
A159: 75 | B159: 19 | C159: Hilfsbereitschaft | D159: 1
A160: 76 | B160: 20 | C160: Klare, gut verständliche Aussprache | D160: 1
A161: 77 | B161: 21 | C161: Gast mit Namen angesprochen | D161: 1
A162: 78 | B162: 22 | C162: Vorbereiteter Meldezettel | D162: 1
A163: 79 | B163: 23 | C163: Gepäcksservice angeboten | D163: 1
A164: 80 | B164: 24 | C164: Begleitung auf das Zimmer angeboten | D164: 1
A165: 81 | B165: 25 | C165: Allgemeine Haus-Informationen angeboten bzw. gegeben | D165: 1
A166: 82 | B166: 26 | C166: Angenehmen Aufenthalt gewünscht | D166: 1
C170: Begleitung zum Zimmer | E170: Kommentar
A171: 83 | B171: 27 | C171: Erscheinungsbild des Mitarbeiters | D171: 1
A172: 84 | B172: 28 | C172: Freundlichkeit, Konversation | D172: 1
C176: Rooming | E176: Kommentar
A177: 85 | B177: 29 | C177: Hinweis auf Hauptschalter (für Strom im Zimmer) | D177: 1
A178: 86 | B178: 30 | C178: Hinweis auf Heizung oder Klimaanlage | D178: 1
A179: 87 | B179: 31 | C179: Telefon (schriftliche Infos ausreichend) | D179: 1
A180: 88 | B180: 32 | C180: Telefonverzeichnis bzw. -nummern (für Zimmerservice) - schriftliche Infos ausreichend | D180: 1
A181: 89 | B181: 33 | C181: Minibar oder Maxibar (bis 4*) auf jeder Etage (schriftliche Infos ausreichend) | D181: 1
A182: 90 | B182: 34 | C182: Safe (schriftliche Infos ausreichend) | D182: 1
A183: 91 | B183: 35 | C183: Wäscherei-Service (schriftliche Infos ausreichend) | D183: 1
A184: 92 | B184: 36 | C184: Bügel-Service (schriftliche Infos ausreichend) | D184: 1
A185: 93 | B185: 37 | C185: Öffnungszeiten Restaurant, Bar (schriftliche Infos ausreichend) | D185: 1
A186: 94 | B186: 38 | C186: Zeitangabe Frühstück (schriftliche Infos ausreichend) | D186: 1
A187: 95 | B187: 39 | C187: Rezeption 24 Std. erreichbar und … Std. besetzt (3*S - 14; 4*S - 16; 5*/5*S - 24) | D187: 1
C188: Anzahl der erfüllten Kriterien | D188: =SUM(D137:D187) -> 39
C189: Multiplikation der Anzahl der erfüllten Kriterien mit | D189: =D733 -> 0.2341920375
C190: Maximale Summe | D190: =D189*B187 -> 9.133489461
C191: Erreichte Punktanzahl | D191: =D189*D188 -> 9.133489461
C193: Kommentar
C196: 6. Zimmer
C198: Erster Eindruck und Allgemeiner Charakter | E198: Kommentar
A199: 96 | B199: 1 | C199: Raumklima (Frischer Geruch) | D199: 1
A200: 97 | B200: 2 | C200: Angenehme Temperatur | D200: 1
A201: 98 | B201: 3 | C201: Atmosphäre (Wohlfühlcharakter) | D201: 1
A202: 99 | B202: 4 | C202: Geräuschpegel (Ruhe) | D202: 1
A203: 100 | B203: 5 | C203: Entsprechendes Mobiliar | D203: 1
A204: 101 | B204: 6 | C204: Sauberkeit | D204: 1
A205: 102 | B205: 7 | C205: Willkommensbrief/-karte | D205: 1
A206: 103 | B206: 8 | C206: Willkommensgruß (z.B. Blumen, Obst, Konfekt…) | D206: 1
A207: 104 | B207: 9 | C207: Türschloss in einwandfreiem Zustand | D207: 1
C211: Das Bett | E211: Kommentar
A212: 105 | B212: 10 | C212: Dem Hotelstandard angemessen | D212: 1
A213: 106 | B213: 11 | C213: Qualität der Bettbezüge angemessen | D213: 1
A214: 107 | B214: 12 | C214: Matratze/Liegekomfort | D214: 1
A215: 108 | B215: 13 | C215: Bettdecken der Jahreszeit angepasst | D215: 1
A216: 109 | B216: 14 | C216: Zusatzkissen auf Wunsch (kein Zierkissen) | D216: 1
A217: 110 | B217: 15 | C217: Zusatzdecke auf Wunsch | D217: 1
A218: 111 | B218: 16 | C218: Zwei Kopfkissen pro Gast (kein Zierkissen) | D218: 1
A219: 112 | B219: 17 | C219: Auswahl verschiedener Kopfkissen | D219: 1
A220: 113 | B220: 18 | C220: Allergikerfreundliche Bettwäsche auf Wunsch | D220: 1
C221: Einrichtung | E221: Kommentar
A222: 114 | B222: 19 | C222: Qualität und Zustand der Vorhänge | D222: 1
A223: 115 | B223: 20 | C223: Verdunkelung mit Vorhängen möglich | D223: 1
A224: 116 | B224: 21 | C224: Schalter, Steckdosen leicht erreichbar | D224: 1
A225: 117 | B225: 22 | C225: Einwandfreie Wände | D225: 1
A226: 118 | B226: 23 | C226: Einwandfreie Beleuchtung | D226: 1
A227: 119 | B227: 24 | C227: Einwandfreie Einrichtung (Mobiliar) | D227: 1
A228: 120 | B228: 25 | C228: Angemessene Anzahl einheitlicher Kleiderbügel (Kein Draht) bis inkl. 3*; verschiedene Bügelarten 4*, 5*; | D228: 1
A229: 121 | B229: 26 | C229: Geräumige Ablagemöglichkeiten | D229: 1
A230: 122 | B230: 27 | C230: Geräumige Hängevorrichtung in den Kästen | D230: 1
C234: Ausstattung und Services | E234: Kommentar
A235: 123 | B235: 28 | C235: Radio- und TV-Programme gut eingestellt | D235: 1
A236: 124 | B236: 29 | C236: Programmverzeichnis vorhanden | D236: 1
A237: 125 | B237: 30 | C237: Aktuelles Fernsehprogramm aufgelegt | D237: 1
A238: 126 | B238: 31 | C238: Schreibmappe mit Schreibgeräten (ab 5* verpflichtend) | D238: 1
A239: 127 | B239: 32 | C239: Telefon mit der Möglichkeit direkt nach innen und außen zu telefonieren | D239: 1
A240: 128 | B240: 33 | C240: Mindestens zweisprachige Bedienungsanleitung für Telefon | D240: 1
A241: 129 | B241: 34 | C241: Schreibblock und einen Bleistift neben Telefon | D241: 1
A242: 130 | B242: 35 | C242: Modemanschluss im Betrieb (bzw. gleichwertiger Internetzugang für den Gast verfügbar) | D242: 1
A243: 131 | B243: 36 | C243: Internetanschluss im Zimmer (W-Lan oder Buchse) | D243: 1
A244: 132 | B244: 37 | C244: Internet-Endgerät auf dem Zimmer auf Wunsch | D244: 1
A245: 133 | B245: 38 | C245: Einwandfreie Funktionalität aller elektrischen Einrichtungen (z.B. Licht, TV, Fön) | D245: 1
A246: 134 | B246: 39 | C246: Safe im Zimmer | D246: 1
A247: 135 | B247: 40 | C247: Wecker (oder Weckfunktion über das TV-Gerät, Telefon) | D247: 1
A248: 136 | B248: 41 | C248: Alternatives Weckservice (Verlässlichkeit, Freundlichkeit) | D248: 1
A249: 137 | B249: 42 | C249: "Bitte nicht stören/Bitte aufräumen" Angabemöglichkeit vorhanden | D249: 1
A250: 138 | B250: 43 | C250: Zustand und Aktualität der aufgelegten Info-Mappe | D250: 1
A251: 139 | B251: 44 | C251: Sicherheitsbestimmungen (z.B. Brandschutz, Fluchtwege) sichtbar | D251: 1
A252: 140 | B252: 45 | C252: Zimmerpreise aufgehängt oder in Infomappe | D252: 1
A253: 141 | B253: 46 | C253: Aufgelegtes Gästemagazin | D253: 1
A254: 142 | B254: 47 | C254: Zeitungs-, Magazinservice | D254: 1
A255: 143 | B255: 48 | C255: Mehrsprachiger Serviceleitfaden A-Z (3*S: mind. zweisprachig; 4*S, 5*, 5*S: mind. dreisprachig) | D255: 1
A256: 144 | B256: 49 | C256: Ladegeräte/Adapter auf Wunsch (z.B. für elektronische Geräte wie Handys, Tabletts..) | D256: 1
A257: 145 | B257: 50 | C257: Internationaler Steckdosenadapter auf Wunsch | D257: 1
A258: 146 | B258: 51 | C258: Mindestens zwei Trinkgläser auf Untersetzer (z.B. Serviette) | D258: 1
A259: 147 | B259: 52 | C259: Getränke im Roomservice (4* - 16h; 5* - 24h) | D259: 1
A260: 148 | B260: 53 | C260: Speisen im Roomservice (4* - 14h; 5* - 24h) | D260: 1
A261: 149 | B261: 54 | C261: Frühstückskarte im Roomservice | D261: 1
... 387 more rows

Sheet Freizeit + Tagung
C7: Fachverband Hotellerie
C11: Fragenkatalog für Mystery Guest-Check
C18: Arbeitsunterlage, 14.4.2015
C24: Dies ist die Auflistung der erforderlichen Prüfkriterien für Firmen, die einen Mystery-Test im Rahmen der Österreichischen Hotelklassifizierung durchführen. Über die Listung einer Firma entscheidet die Lenkungskommission bzw. der Fachverband Hotellerie nach Prüfung der Voraussetzungen.
C26: positiv erfülltes Kriterium | D26: 1
C27: negativ erfülltes Kriterium | D27: 0
C30: 1. Web-Auftritt
E31: Kommentar
A32: 1 | B32: 1 | C32: Nachvollziehbare Webadresse | D32: 1
A33: 2 | B33: 2 | C33: Funktionieren alle Links | D33: 1
A34: 3 | B34: 3 | C34: Übersichtlichkeit | D34: 1
A35: 4 | B35: 4 | C35: Such-Funktion | D35: 1
A36: 5 | B36: 5 | C36: Integriertes Gästefeedback | D36: 1
A37: 6 | B37: 6 | C37: Tipp-, Rechtschreib- und Grammatikfehler | D37: 1
A38: 7 | B38: 7 | C38: Aussagekräftiger, realistischer Auftritt mit Hotelbildern | D38: 1
A39: 8 | B39: 8 | C39: Aktualität | D39: 1
A40: 9 | B40: 9 | C40: Impressum | D40: 1
A41: 10 | B41: 10 | C41: Übersetzung in mindestens eine Fremdsprache (ab 3* verpflichtend) | D41: 1
A42: 11 | B42: 11 | C42: Kontaktangabe (Email, Telefon, etc.) | D42: 1
A43: 12 | B43: 12 | C43: Online-Buchbarkeit auf eigener Website | D43: 1
A44: 13 | B44: 13 | C44: Anfahrtsplan | D44: 1
A45: 14 | B45: 14 | C45: Allgemeinen Geschäftsbedingungen oder Stornobedingungen vorhanden | D45: 1
C46: Anzahl der erfüllten Kriterien | D46: =SUM(D32:D45) -> 14
C47: Multiplikation der Anzahl der erfüllten Kriterien mit | D47: =D730 -> 0.234741784
C48: Maximale Summe | D48: =D47*B45 -> 3.286384977
C49: Erreichte Punktanzahl | D49: =D46*D47 -> 3.286384977
C51: Kommentar
C53: 2. E-Mail und Post
C55: Beantwortung Ihrer E-Mail Anfrage, | E55: Kommentar
A56: 15 | B56: 1 | C56: Innerhalb … Stunden ab Anfrage (3*S - 12; 4*S - 8; 5*/5*S - 4) | D56: 1
A57: 16 | B57: 2 | C57: Qualität (Schreibstil, Wortwahl, korrekte Anrede, Rechtsschreibung) | D57: 1
A58: 17 | B58: 3 | C58: Informationsgehalt (z.B. Zusatzangebote), | D58: 1
A59: 18 | B59: 4 | C59: Individuelle Bearbeitung | D59: 1
A60: 19 | B60: 5 | C60: Bei Angebot: Angaben zu Stornobedingungen, | D60: 1
C64: Reservierungs-Bestätigung (E-Mail, Fax) als Antwort auf Ihre Buchung | E64: Kommentar
A65: 20 | B65: 6 | C65: Innerhalb … Stunden ab Reservierung (3*S - 24; 4*S - 12; 5*/5*S - 8) | D65: 1
A66: 21 | B66: 7 | C66: Qualität (Schreibstil, Wortwahl, korrekte Anrede, Rechtsschreibung) | D66: 1
A67: 22 | B67: 8 | C67: Informationsgehalt (u.a. Aktuelle Anfahrtsbeschreibung), | D67: 1
A68: 23 | B68: 9 | C68: Angaben zu Stornobedingungen | D68: 1
C72: Unterlagen per Post | E72: Kommentar
A73: 24 | B73: 10 | C73: Zusendung innerhalb von 3 Werktagen | D73: 1
A74: 25 | B74: 11 | C74: Begleitschreiben | D74: 1
A75: 26 | B75: 12 | C75: Qualität (Schreibstil, Wortwahl, korrekte Anrede, Rechtsschreibung) | D75: 1
A76: 27 | B76: 13 | C76: Informationsgehalt (z.B. Zusatzangebote), | D76: 1
A77: 28 | B77: 14 | C77: Individuelle Bearbeitung | D77: 1
A78: 29 | B78: 15 | C78: Qualitativ entsprechende Unterlagen, Prospekte | D78: 1
C79: Anzahl der erfüllten Kriterien | D79: =SUM(D56:D78) -> 15
C80: Multiplikation der Anzahl der erfüllten Kriterien mit | D80: =D730 -> 0.234741784
C81: Maximale Summe | D81: =D80*B78 -> 3.521126761
C82: Erreichte Punktanzahl | D82: =D80*D79 -> 3.521126761
C84: Kommentar
C87: 3. Telefon
E88: Kommentar
A89: 30 | B89: 1 | C89: Wartezeit (3*S - 1 Min; 4*S - 30 Sek; 5*/5*S - 15 Sek) | D89: 1
A90: 31 | B90: 2 | C90: Während der Wartezeit Text- bzw. Tonschleife | D90: 1
A91: 32 | B91: 3 | C91: Herzlichkeit | D91: 1
A92: 33 | B92: 4 | C92: Klare deutliche Stimme und Aussprache | D92: 1
A93: 34 | B93: 5 | C93: Mit Namen angesprochen | D93: 1
A94: 35 | B94: 6 | C94: Vollständige Datenaufnahme (z.B. Adresse, Tel, Email-Nachfrage), | D94: 1
A95: 36 | B95: 7 | C95: Fachliche Kompetenz | D95: 1
A96: 37 | B96: 8 | C96: An- und Abreisedatum wiederholt und bestätigt | D96: 1
A97: 38 | B97: 9 | C97: Informationen über Kategorien | D97: 1
A98: 39 | B98: 10 | C98: Informationen über Preise | D98: 1
A99: 40 | B99: 11 | C99: Informationen über Zahlungsmodalitäten | D99: 1
A100: 41 | B100: 12 | C100: Informationen über Leistungen | D100: 1
A101: 42 | B101: 13 | C101: Informationen über Check-in-Zeiten | D101: 1
A102: 43 | B102: 14 | C102: Informationen über Zusatzangebote | D102: 1
A103: 44 | B103: 15 | C103: Anfahrts-, Wegbeschreibung | D103: 1
A104: 45 | B104: 16 | C104: Angebot zur vorläufigen Einbuchung | D104: 1
A105: 46 | B105: 17 | C105: Hinweis auf Stornobedingungen | D105: 1
A106: 47 | B106: 18 | C106: Freundliche Verabschiedung und Dank | D106: 1
C107: Anzahl der erfüllten Kriterien | D107: =SUM(D89:D106) -> 18
C108: Multiplikation der Anzahl der erfüllten Kriterien mit | D108: =D730 -> 0.234741784
C109: Maximale Summe | D109: =D108*B106 -> 4.225352113
C110: Erreichte Punktanzahl | D110: =D108*D107 -> 4.225352113
C112: Kommentar
C115: 4. Anreise und Außenanlage
E116: Kommentar
A117: 48 | B117: 1 | C117: Auffindbarkeit (z.B. Beschilderung im Ort) | D117: 1
A118: 49 | B118: 2 | C118: Zufahrtsmöglichkeit | D118: 1
A119: 50 | B119: 3 | C119: Parkplätze | D119: 1
A120: 51 | B120: 4 | C120: Garagenplätze | D120: 1
A121: 52 | B121: 5 | C121: Beleuchtung | D121: 1
A122: 53 | B122: 6 | C122: Gepäckservice | D122: 1
A123: 54 | B123: 7 | C123: Einfache Orientierung | D123: 1
A124: 55 | B124: 8 | C124: Sauberkeit und Zustand | D124: 1
A125: 56 | B125: 9 | C125: Parkservice (z.B. Doorman, Wagenmeiser) | D125: 1
C126: Anzahl der erfüllten Kriterien | D126: =SUM(D117:D125) -> 9
C127: Multiplikation der Anzahl der erfüllten Kriterien mit | D127: =D730 -> 0.234741784
C128: Maximale Summe | D128: =D127*B125 -> 2.112676056
C129: Erreichte Punktanzahl | D129: =D127*D126 -> 2.112676056
C131: Kommentar
C134: 5. Check-In
C136: Eingang | E136: Kommentar
A137: 57 | B137: 1 | C137: Raumklima (Geruch) | D137: 1
A138: 58 | B138: 2 | C138: Raumtemperatur | D138: 1
A139: 59 | B139: 3 | C139: Beleuchtung ausreichend | D139: 1
A140: 60 | B140: 4 | C140: Ambiente/Atmosphäre | D140: 1
A141: 61 | B141: 5 | C141: Entsprechend qualitatives Mobiliar | D141: 1
A142: 62 | B142: 6 | C142: Sauberkeit und Ordnung | D142: 1
A143: 63 | B143: 7 | C143: Stimmige Dekorationen | D143: 1
A144: 64 | B144: 8 | C144: Großzügiger Sitzbereich für Gäste | D144: 1
A145: 65 | B145: 9 | C145: Erscheinungsbild Check-In-Bereich (Front Office - Sauberkeit, Ordnung) | D145: 1
C149: Front Office Mitarbeiter | E149: Kommentar
A150: 66 | B150: 10 | C150: Anwesenheit | D150: 1
A151: 67 | B151: 11 | C151: Begrüßung (z.B. Welcome Drink) | D151: 1
A152: 68 | B152: 12 | C152: Herzlichkeit, Freundlichkeit | D152: 1
A153: 69 | B153: 13 | C153: Erscheinungsbild Mitarbeiter (z.B. Uniform, Namensschild) | D153: 1
A154: 70 | B154: 14 | C154: Fachkompetenz | D154: 1
A155: 71 | B155: 15 | C155: Fremdsprachenkenntnisse | D155: 1
A156: 72 | B156: 16 | C156: Aufmerksamkeit | D156: 1
A157: 73 | B157: 17 | C157: Sorgfältigkeit | D157: 1
A158: 74 | B158: 18 | C158: Effizienz (Schnelligkeit, Flexibilität) | D158: 1
A159: 75 | B159: 19 | C159: Hilfsbereitschaft | D159: 1
A160: 76 | B160: 20 | C160: Klare, gut verständliche Aussprache | D160: 1
A161: 77 | B161: 21 | C161: Gast mit Namen angesprochen | D161: 1
A162: 78 | B162: 22 | C162: Vorbereiteter Meldezettel | D162: 1
A163: 79 | B163: 23 | C163: Gepäcksservice angeboten | D163: 1
A164: 80 | B164: 24 | C164: Begleitung auf das Zimmer angeboten | D164: 1
A165: 81 | B165: 25 | C165: Allgemeine Haus-Informationen angeboten bzw. gegeben | D165: 1
A166: 82 | B166: 26 | C166: Angenehmen Aufenthalt gewünscht | D166: 1
C170: Begleitung zum Zimmer | E170: Kommentar
A171: 83 | B171: 27 | C171: Erscheinungsbild des Mitarbeiters | D171: 1
A172: 84 | B172: 28 | C172: Freundlichkeit, Konversation | D172: 1
C176: Rooming | E176: Kommentar
A177: 85 | B177: 29 | C177: Hinweis auf Hauptschalter (für Strom im Zimmer) | D177: 1
A178: 86 | B178: 30 | C178: Hinweis auf Heizung oder Klimaanlage | D178: 1
A179: 87 | B179: 31 | C179: Telefon (schriftliche Infos ausreichend) | D179: 1
A180: 88 | B180: 32 | C180: Telefonverzeichnis bzw. -nummern (für Zimmerservice) - schriftliche Infos ausreichend | D180: 1
A181: 89 | B181: 33 | C181: Minibar oder Maxibar (bis 4*) auf jeder Etage (schriftliche Infos ausreichend) | D181: 1
A182: 90 | B182: 34 | C182: Safe (schriftliche Infos ausreichend) | D182: 1
A183: 91 | B183: 35 | C183: Wäscherei-Service (schriftliche Infos ausreichend) | D183: 1
A184: 92 | B184: 36 | C184: Bügel-Service (schriftliche Infos ausreichend) | D184: 1
A185: 93 | B185: 37 | C185: Öffnungszeiten Restaurant, Bar (schriftliche Infos ausreichend) | D185: 1
A186: 94 | B186: 38 | C186: Zeitangabe Frühstück (schriftliche Infos ausreichend) | D186: 1
A187: 95 | B187: 39 | C187: Rezeption 24 Std. erreichbar und … Std. besetzt (3*S - 14; 4*S - 16; 5*/5*S - 24) | D187: 1
C188: Anzahl der erfüllten Kriterien | D188: =SUM(D137:D187) -> 39
C189: Multiplikation der Anzahl der erfüllten Kriterien mit | D189: =D730 -> 0.234741784
C190: Maximale Summe | D190: =D189*B187 -> 9.154929577
C191: Erreichte Punktanzahl | D191: =D189*D188 -> 9.154929577
C193: Kommentar
C196: 6. Zimmer
C198: Erster Eindruck und Allgemeiner Charakter | E198: Kommentar
A199: 96 | B199: 1 | C199: Raumklima (Frischer Geruch) | D199: 1
A200: 97 | B200: 2 | C200: Angenehme Temperatur | D200: 1
A201: 98 | B201: 3 | C201: Atmosphäre (Wohlfühlcharakter) | D201: 1
A202: 99 | B202: 4 | C202: Geräuschpegel (Ruhe) | D202: 1
A203: 100 | B203: 5 | C203: Entsprechendes Mobiliar | D203: 1
A204: 101 | B204: 6 | C204: Sauberkeit | D204: 1
A205: 102 | B205: 7 | C205: Willkommensbrief/-karte | D205: 1
A206: 103 | B206: 8 | C206: Willkommensgruß (z.B. Blumen, Obst, Konfekt…) | D206: 1
A207: 104 | B207: 9 | C207: Türschloss in einwandfreiem Zustand | D207: 1
C211: Das Bett | E211: Kommentar
A212: 105 | B212: 10 | C212: Dem Hotelstandard angemessen | D212: 1
A213: 106 | B213: 11 | C213: Qualität der Bettbezüge angemessen | D213: 1
A214: 107 | B214: 12 | C214: Matratze/Liegekomfort | D214: 1
A215: 108 | B215: 13 | C215: Bettdecken der Jahreszeit angepasst | D215: 1
A216: 109 | B216: 14 | C216: Zusatzkissen auf Wunsch (kein Zierkissen) | D216: 1
A217: 110 | B217: 15 | C217: Zusatzdecke auf Wunsch | D217: 1
A218: 111 | B218: 16 | C218: Zwei Kopfkissen pro Gast (kein Zierkissen) | D218: 1
A219: 112 | B219: 17 | C219: Auswahl verschiedener Kopfkissen | D219: 1
A220: 113 | B220: 18 | C220: Allergikerfreundliche Bettwäsche auf Wunsch | D220: 1
C221: Einrichtung | E221: Kommentar
A222: 114 | B222: 19 | C222: Qualität und Zustand der Vorhänge | D222: 1
A223: 115 | B223: 20 | C223: Verdunkelung mit Vorhängen möglich | D223: 1
A224: 116 | B224: 21 | C224: Schalter, Steckdosen leicht erreichbar | D224: 1
A225: 117 | B225: 22 | C225: Einwandfreie Wände | D225: 1
A226: 118 | B226: 23 | C226: Einwandfreie Beleuchtung | D226: 1
A227: 119 | B227: 24 | C227: Einwandfreie Einrichtung (Mobiliar) | D227: 1
A228: 120 | B228: 25 | C228: Angemessene Anzahl einheitlicher Kleiderbügel (Kein Draht) bis inkl. 3*; verschiedene Bügelarten 4*, 5*; | D228: 1
A229: 121 | B229: 26 | C229: Geräumige Ablagemöglichkeiten | D229: 1
A230: 122 | B230: 27 | C230: Geräumige Hängevorrichtung in den Kästen | D230: 1
C234: Ausstattung und Services | E234: Kommentar
A235: 123 | B235: 28 | C235: Radio- und TV-Programme gut eingestellt | D235: 1
A236: 124 | B236: 29 | C236: Programmverzeichnis vorhanden | D236: 1
A237: 125 | B237: 30 | C237: Aktuelles Fernsehprogramm aufgelegt | D237: 1
A238: 126 | B238: 31 | C238: Schreibmappe mit Schreibgeräten (ab 5* verpflichtend) | D238: 1
A239: 127 | B239: 32 | C239: Telefon mit der Möglichkeit direkt nach innen und außen zu telefonieren | D239: 1
A240: 128 | B240: 33 | C240: Mindestens zweisprachige Bedienungsanleitung für Telefon | D240: 1
A241: 129 | B241: 34 | C241: Schreibblock und einen Bleistift neben Telefon | D241: 1
A242: 130 | B242: 35 | C242: Modemanschluss im Betrieb (bzw. gleichwertiger Internetzugang für den Gast verfügbar) | D242: 1
A243: 131 | B243: 36 | C243: Internetanschluss im Zimmer (W-Lan oder Buchse) | D243: 1
A244: 132 | B244: 37 | C244: Internet-Endgerät auf dem Zimmer auf Wunsch | D244: 1
A245: 133 | B245: 38 | C245: Einwandfreie Funktionalität aller elektrischen Einrichtungen (z.B. Licht, TV, Fön) | D245: 1
A246: 134 | B246: 39 | C246: Safe im Zimmer | D246: 1
A247: 135 | B247: 40 | C247: Wecker (oder Weckfunktion über das TV-Gerät, Telefon) | D247: 1
A248: 136 | B248: 41 | C248: Alternatives Weckservice (Verlässlichkeit, Freundlichkeit) | D248: 1
A249: 137 | B249: 42 | C249: "Bitte nicht stören/Bitte aufräumen" Angabemöglichkeit vorhanden | D249: 1
A250: 138 | B250: 43 | C250: Zustand und Aktualität der aufgelegten Info-Mappe | D250: 1
A251: 139 | B251: 44 | C251: Sicherheitsbestimmungen (z.B. Brandschutz, Fluchtwege) sichtbar | D251: 1
A252: 140 | B252: 45 | C252: Zimmerpreise aufgehängt oder in Infomappe | D252: 1
A253: 141 | B253: 46 | C253: Aufgelegtes Gästemagazin | D253: 1
A254: 142 | B254: 47 | C254: Zeitungs-, Magazinservice | D254: 1
A255: 143 | B255: 48 | C255: Mehrsprachiger Serviceleitfaden A-Z (3*S: mind. zweisprachig; 4*S, 5*, 5*S: mind. dreisprachig) | D255: 1
A256: 144 | B256: 49 | C256: Ladegeräte/Adapter auf Wunsch (z.B. für elektronische Geräte wie Handys, Tabletts..) | D256: 1
A257: 145 | B257: 50 | C257: Internationaler Steckdosenadapter auf Wunsch | D257: 1
A258: 146 | B258: 51 | C258: Mindestens zwei Trinkgläser auf Untersetzer (z.B. Serviette) | D258: 1
A259: 147 | B259: 52 | C259: Getränke im Roomservice (4* - 16h; 5* - 24h) | D259: 1
A260: 148 | B260: 53 | C260: Speisen im Roomservice (4* - 14h; 5* - 24h) | D260: 1
A261: 149 | B261: 54 | C261: Frühstückskarte im Roomservice | D261: 1
... 386 more rows

Sheet Tagung + SPA
C7: Fachverband Hotellerie
C11: Fragenkatalog für Mystery Guest-Check
C18: Arbeitsunterlage, 14.4.2015
C24: Dies ist die Auflistung der erforderlichen Prüfkriterien für Firmen, die einen Mystery-Test im Rahmen der Österreichischen Hotelklassifizierung durchführen. Über die Listung einer Firma entscheidet die Lenkungskommission bzw. der Fachverband Hotellerie nach Prüfung der Voraussetzungen.
C26: positiv erfülltes Kriterium | D26: 1
C27: negativ erfülltes Kriterium | D27: 0
C30: 1. Web-Auftritt
E31: Kommentar
A32: 1 | B32: 1 | C32: Nachvollziehbare Webadresse | D32: 1
A33: 2 | B33: 2 | C33: Funktionieren alle Links | D33: 1
A34: 3 | B34: 3 | C34: Übersichtlichkeit | D34: 1
A35: 4 | B35: 4 | C35: Such-Funktion | D35: 1
A36: 5 | B36: 5 | C36: Integriertes Gästefeedback | D36: 1
A37: 6 | B37: 6 | C37: Tipp-, Rechtschreib- und Grammatikfehler | D37: 1
A38: 7 | B38: 7 | C38: Aussagekräftiger, realistischer Auftritt mit Hotelbildern | D38: 1
A39: 8 | B39: 8 | C39: Aktualität | D39: 1
A40: 9 | B40: 9 | C40: Impressum | D40: 1
A41: 10 | B41: 10 | C41: Übersetzung in mindestens eine Fremdsprache (ab 3* verpflichtend) | D41: 1
A42: 11 | B42: 11 | C42: Kontaktangabe (Email, Telefon, etc.) | D42: 1
A43: 12 | B43: 12 | C43: Online-Buchbarkeit auf eigener Website | D43: 1
A44: 13 | B44: 13 | C44: Anfahrtsplan | D44: 1
A45: 14 | B45: 14 | C45: Allgemeinen Geschäftsbedingungen oder Stornobedingungen vorhanden | D45: 1
C46: Anzahl der erfüllten Kriterien | D46: =SUM(D32:D45) -> 14
C47: Multiplikation der Anzahl der erfüllten Kriterien mit | D47: =D730 -> 0.2341920375
C48: Maximale Summe | D48: =D47*B45 -> 3.278688525
C49: Erreichte Punktanzahl | D49: =D46*D47 -> 3.278688525
C51: Kommentar
C53: 2. E-Mail und Post
C55: Beantwortung Ihrer E-Mail Anfrage, | E55: Kommentar
A56: 15 | B56: 1 | C56: Innerhalb … Stunden ab Anfrage (3*S - 12; 4*S - 8; 5*/5*S - 4) | D56: 1
A57: 16 | B57: 2 | C57: Qualität (Schreibstil, Wortwahl, korrekte Anrede, Rechtsschreibung) | D57: 1
A58: 17 | B58: 3 | C58: Informationsgehalt (z.B. Zusatzangebote), | D58: 1
A59: 18 | B59: 4 | C59: Individuelle Bearbeitung | D59: 1
A60: 19 | B60: 5 | C60: Bei Angebot: Angaben zu Stornobedingungen, | D60: 1
C64: Reservierungs-Bestätigung (E-Mail, Fax) als Antwort auf Ihre Buchung | E64: Kommentar
A65: 20 | B65: 6 | C65: Innerhalb … Stunden ab Reservierung (3*S - 24; 4*S - 12; 5*/5*S - 8) | D65: 1
A66: 21 | B66: 7 | C66: Qualität (Schreibstil, Wortwahl, korrekte Anrede, Rechtsschreibung) | D66: 1
A67: 22 | B67: 8 | C67: Informationsgehalt (u.a. Aktuelle Anfahrtsbeschreibung), | D67: 1
A68: 23 | B68: 9 | C68: Angaben zu Stornobedingungen | D68: 1
C72: Unterlagen per Post | E72: Kommentar
A73: 24 | B73: 10 | C73: Zusendung innerhalb von 3 Werktagen | D73: 1
A74: 25 | B74: 11 | C74: Begleitschreiben | D74: 1
A75: 26 | B75: 12 | C75: Qualität (Schreibstil, Wortwahl, korrekte Anrede, Rechtsschreibung) | D75: 1
A76: 27 | B76: 13 | C76: Informationsgehalt (z.B. Zusatzangebote), | D76: 1
A77: 28 | B77: 14 | C77: Individuelle Bearbeitung | D77: 1
A78: 29 | B78: 15 | C78: Qualitativ entsprechende Unterlagen, Prospekte | D78: 1
C79: Anzahl der erfüllten Kriterien | D79: =SUM(D56:D78) -> 15
C80: Multiplikation der Anzahl der erfüllten Kriterien mit | D80: =D730 -> 0.2341920375
C81: Maximale Summe | D81: =D80*B78 -> 3.512880562
C82: Erreichte Punktanzahl | D82: =D80*D79 -> 3.512880562
C84: Kommentar
C87: 3. Telefon
E88: Kommentar
A89: 30 | B89: 1 | C89: Wartezeit (3*S - 1 Min; 4*S - 30 Sek; 5*/5*S - 15 Sek) | D89: 1
A90: 31 | B90: 2 | C90: Während der Wartezeit Text- bzw. Tonschleife | D90: 1
A91: 32 | B91: 3 | C91: Herzlichkeit | D91: 1
A92: 33 | B92: 4 | C92: Klare deutliche Stimme und Aussprache | D92: 1
A93: 34 | B93: 5 | C93: Mit Namen angesprochen | D93: 1
A94: 35 | B94: 6 | C94: Vollständige Datenaufnahme (z.B. Adresse, Tel, Email-Nachfrage), | D94: 1
A95: 36 | B95: 7 | C95: Fachliche Kompetenz | D95: 1
A96: 37 | B96: 8 | C96: An- und Abreisedatum wiederholt und bestätigt | D96: 1
A97: 38 | B97: 9 | C97: Informationen über Kategorien | D97: 1
A98: 39 | B98: 10 | C98: Informationen über Preise | D98: 1
A99: 40 | B99: 11 | C99: Informationen über Zahlungsmodalitäten | D99: 1
A100: 41 | B100: 12 | C100: Informationen über Leistungen | D100: 1
A101: 42 | B101: 13 | C101: Informationen über Check-in-Zeiten | D101: 1
A102: 43 | B102: 14 | C102: Informationen über Zusatzangebote | D102: 1
A103: 44 | B103: 15 | C103: Anfahrts-, Wegbeschreibung | D103: 1
A104: 45 | B104: 16 | C104: Angebot zur vorläufigen Einbuchung | D104: 1
A105: 46 | B105: 17 | C105: Hinweis auf Stornobedingungen | D105: 1
A106: 47 | B106: 18 | C106: Freundliche Verabschiedung und Dank | D106: 1
C107: Anzahl der erfüllten Kriterien | D107: =SUM(D89:D106) -> 18
C108: Multiplikation der Anzahl der erfüllten Kriterien mit | D108: =D730 -> 0.2341920375
C109: Maximale Summe | D109: =D108*B106 -> 4.215456674
C110: Erreichte Punktanzahl | D110: =D108*D107 -> 4.215456674
C112: Kommentar
C115: 4. Anreise und Außenanlage
E116: Kommentar
A117: 48 | B117: 1 | C117: Auffindbarkeit (z.B. Beschilderung im Ort) | D117: 1
A118: 49 | B118: 2 | C118: Zufahrtsmöglichkeit | D118: 1
A119: 50 | B119: 3 | C119: Parkplätze | D119: 1
A120: 51 | B120: 4 | C120: Garagenplätze | D120: 1
A121: 52 | B121: 5 | C121: Beleuchtung | D121: 1
A122: 53 | B122: 6 | C122: Gepäckservice | D122: 1
A123: 54 | B123: 7 | C123: Einfache Orientierung | D123: 1
A124: 55 | B124: 8 | C124: Sauberkeit und Zustand | D124: 1
A125: 56 | B125: 9 | C125: Parkservice (z.B. Doorman, Wagenmeiser) | D125: 1
C126: Anzahl der erfüllten Kriterien | D126: =SUM(D117:D125) -> 9
C127: Multiplikation der Anzahl der erfüllten Kriterien mit | D127: =D730 -> 0.2341920375
C128: Maximale Summe | D128: =D127*B125 -> 2.107728337
C129: Erreichte Punktanzahl | D129: =D127*D126 -> 2.107728337
C131: Kommentar
C134: 5. Check-In
C136: Eingang | E136: Kommentar
A137: 57 | B137: 1 | C137: Raumklima (Geruch) | D137: 1
A138: 58 | B138: 2 | C138: Raumtemperatur | D138: 1
A139: 59 | B139: 3 | C139: Beleuchtung ausreichend | D139: 1
A140: 60 | B140: 4 | C140: Ambiente/Atmosphäre | D140: 1
A141: 61 | B141: 5 | C141: Entsprechend qualitatives Mobiliar | D141: 1
A142: 62 | B142: 6 | C142: Sauberkeit und Ordnung | D142: 1
A143: 63 | B143: 7 | C143: Stimmige Dekorationen | D143: 1
A144: 64 | B144: 8 | C144: Großzügiger Sitzbereich für Gäste | D144: 1
A145: 65 | B145: 9 | C145: Erscheinungsbild Check-In-Bereich (Front Office - Sauberkeit, Ordnung) | D145: 1
C149: Front Office Mitarbeiter | E149: Kommentar
A150: 66 | B150: 10 | C150: Anwesenheit | D150: 1
A151: 67 | B151: 11 | C151: Begrüßung (z.B. Welcome Drink) | D151: 1
A152: 68 | B152: 12 | C152: Herzlichkeit, Freundlichkeit | D152: 1
A153: 69 | B153: 13 | C153: Erscheinungsbild Mitarbeiter (z.B. Uniform, Namensschild) | D153: 1
A154: 70 | B154: 14 | C154: Fachkompetenz | D154: 1
A155: 71 | B155: 15 | C155: Fremdsprachenkenntnisse | D155: 1
A156: 72 | B156: 16 | C156: Aufmerksamkeit | D156: 1
A157: 73 | B157: 17 | C157: Sorgfältigkeit | D157: 1
A158: 74 | B158: 18 | C158: Effizienz (Schnelligkeit, Flexibilität) | D158: 1
A159: 75 | B159: 19 | C159: Hilfsbereitschaft | D159: 1
A160: 76 | B160: 20 | C160: Klare, gut verständliche Aussprache | D160: 1
A161: 77 | B161: 21 | C161: Gast mit Namen angesprochen | D161: 1
A162: 78 | B162: 22 | C162: Vorbereiteter Meldezettel | D162: 1
A163: 79 | B163: 23 | C163: Gepäcksservice angeboten | D163: 1
A164: 80 | B164: 24 | C164: Begleitung auf das Zimmer angeboten | D164: 1
A165: 81 | B165: 25 | C165: Allgemeine Haus-Informationen angeboten bzw. gegeben | D165: 1
A166: 82 | B166: 26 | C166: Angenehmen Aufenthalt gewünscht | D166: 1
C170: Begleitung zum Zimmer | E170: Kommentar
A171: 83 | B171: 27 | C171: Erscheinungsbild des Mitarbeiters | D171: 1
A172: 84 | B172: 28 | C172: Freundlichkeit, Konversation | D172: 1
C176: Rooming | E176: Kommentar
A177: 85 | B177: 29 | C177: Hinweis auf Hauptschalter (für Strom im Zimmer) | D177: 1
A178: 86 | B178: 30 | C178: Hinweis auf Heizung oder Klimaanlage | D178: 1
A179: 87 | B179: 31 | C179: Telefon (schriftliche Infos ausreichend) | D179: 1
A180: 88 | B180: 32 | C180: Telefonverzeichnis bzw. -nummern (für Zimmerservice) - schriftliche Infos ausreichend | D180: 1
A181: 89 | B181: 33 | C181: Minibar oder Maxibar (bis 4*) auf jeder Etage (schriftliche Infos ausreichend) | D181: 1
A182: 90 | B182: 34 | C182: Safe (schriftliche Infos ausreichend) | D182: 1
A183: 91 | B183: 35 | C183: Wäscherei-Service (schriftliche Infos ausreichend) | D183: 1
A184: 92 | B184: 36 | C184: Bügel-Service (schriftliche Infos ausreichend) | D184: 1
A185: 93 | B185: 37 | C185: Öffnungszeiten Restaurant, Bar (schriftliche Infos ausreichend) | D185: 1
A186: 94 | B186: 38 | C186: Zeitangabe Frühstück (schriftliche Infos ausreichend) | D186: 1
A187: 95 | B187: 39 | C187: Rezeption 24 Std. erreichbar und … Std. besetzt (3*S - 14; 4*S - 16; 5*/5*S - 24) | D187: 1
C188: Anzahl der erfüllten Kriterien | D188: =SUM(D137:D187) -> 39
C189: Multiplikation der Anzahl der erfüllten Kriterien mit | D189: =D730 -> 0.2341920375
C190: Maximale Summe | D190: =D189*B187 -> 9.133489461
C191: Erreichte Punktanzahl | D191: =D189*D188 -> 9.133489461
C193: Kommentar
C196: 6. Zimmer
C198: Erster Eindruck und Allgemeiner Charakter | E198: Kommentar
A199: 96 | B199: 1 | C199: Raumklima (Frischer Geruch) | D199: 1
A200: 97 | B200: 2 | C200: Angenehme Temperatur | D200: 1
A201: 98 | B201: 3 | C201: Atmosphäre (Wohlfühlcharakter) | D201: 1
A202: 99 | B202: 4 | C202: Geräuschpegel (Ruhe) | D202: 1
A203: 100 | B203: 5 | C203: Entsprechendes Mobiliar | D203: 1
A204: 101 | B204: 6 | C204: Sauberkeit | D204: 1
A205: 102 | B205: 7 | C205: Willkommensbrief/-karte | D205: 1
A206: 103 | B206: 8 | C206: Willkommensgruß (z.B. Blumen, Obst, Konfekt…) | D206: 1
A207: 104 | B207: 9 | C207: Türschloss in einwandfreiem Zustand | D207: 1
C211: Das Bett | E211: Kommentar
A212: 105 | B212: 10 | C212: Dem Hotelstandard angemessen | D212: 1
A213: 106 | B213: 11 | C213: Qualität der Bettbezüge angemessen | D213: 1
A214: 107 | B214: 12 | C214: Matratze/Liegekomfort | D214: 1
A215: 108 | B215: 13 | C215: Bettdecken der Jahreszeit angepasst | D215: 1
A216: 109 | B216: 14 | C216: Zusatzkissen auf Wunsch (kein Zierkissen) | D216: 1
A217: 110 | B217: 15 | C217: Zusatzdecke auf Wunsch | D217: 1
A218: 111 | B218: 16 | C218: Zwei Kopfkissen pro Gast (kein Zierkissen) | D218: 1
A219: 112 | B219: 17 | C219: Auswahl verschiedener Kopfkissen | D219: 1
A220: 113 | B220: 18 | C220: Allergikerfreundliche Bettwäsche auf Wunsch | D220: 1
C221: Einrichtung | E221: Kommentar
A222: 114 | B222: 19 | C222: Qualität und Zustand der Vorhänge | D222: 1
A223: 115 | B223: 20 | C223: Verdunkelung mit Vorhängen möglich | D223: 1
A224: 116 | B224: 21 | C224: Schalter, Steckdosen leicht erreichbar | D224: 1
A225: 117 | B225: 22 | C225: Einwandfreie Wände | D225: 1
A226: 118 | B226: 23 | C226: Einwandfreie Beleuchtung | D226: 1
A227: 119 | B227: 24 | C227: Einwandfreie Einrichtung (Mobiliar) | D227: 1
A228: 120 | B228: 25 | C228: Angemessene Anzahl einheitlicher Kleiderbügel (Kein Draht) bis inkl. 3*; verschiedene Bügelarten 4*, 5*; | D228: 1
A229: 121 | B229: 26 | C229: Geräumige Ablagemöglichkeiten | D229: 1
A230: 122 | B230: 27 | C230: Geräumige Hängevorrichtung in den Kästen | D230: 1
C234: Ausstattung und Services | E234: Kommentar
A235: 123 | B235: 28 | C235: Radio- und TV-Programme gut eingestellt | D235: 1
A236: 124 | B236: 29 | C236: Programmverzeichnis vorhanden | D236: 1
A237: 125 | B237: 30 | C237: Aktuelles Fernsehprogramm aufgelegt | D237: 1
A238: 126 | B238: 31 | C238: Schreibmappe mit Schreibgeräten (ab 5* verpflichtend) | D238: 1
A239: 127 | B239: 32 | C239: Telefon mit der Möglichkeit direkt nach innen und außen zu telefonieren | D239: 1
A240: 128 | B240: 33 | C240: Mindestens zweisprachige Bedienungsanleitung für Telefon | D240: 1
A241: 129 | B241: 34 | C241: Schreibblock und einen Bleistift neben Telefon | D241: 1
A242: 130 | B242: 35 | C242: Modemanschluss im Betrieb (bzw. gleichwertiger Internetzugang für den Gast verfügbar) | D242: 1
A243: 131 | B243: 36 | C243: Internetanschluss im Zimmer (W-Lan oder Buchse) | D243: 1
A244: 132 | B244: 37 | C244: Internet-Endgerät auf dem Zimmer auf Wunsch | D244: 1
A245: 133 | B245: 38 | C245: Einwandfreie Funktionalität aller elektrischen Einrichtungen (z.B. Licht, TV, Fön) | D245: 1
A246: 134 | B246: 39 | C246: Safe im Zimmer | D246: 1
A247: 135 | B247: 40 | C247: Wecker (oder Weckfunktion über das TV-Gerät, Telefon) | D247: 1
A248: 136 | B248: 41 | C248: Alternatives Weckservice (Verlässlichkeit, Freundlichkeit) | D248: 1
A249: 137 | B249: 42 | C249: "Bitte nicht stören/Bitte aufräumen" Angabemöglichkeit vorhanden | D249: 1
A250: 138 | B250: 43 | C250: Zustand und Aktualität der aufgelegten Info-Mappe | D250: 1
A251: 139 | B251: 44 | C251: Sicherheitsbestimmungen (z.B. Brandschutz, Fluchtwege) sichtbar | D251: 1
A252: 140 | B252: 45 | C252: Zimmerpreise aufgehängt oder in Infomappe | D252: 1
A253: 141 | B253: 46 | C253: Aufgelegtes Gästemagazin | D253: 1
A254: 142 | B254: 47 | C254: Zeitungs-, Magazinservice | D254: 1
A255: 143 | B255: 48 | C255: Mehrsprachiger Serviceleitfaden A-Z (3*S: mind. zweisprachig; 4*S, 5*, 5*S: mind. dreisprachig) | D255: 1
A256: 144 | B256: 49 | C256: Ladegeräte/Adapter auf Wunsch (z.B. für elektronische Geräte wie Handys, Tabletts..) | D256: 1
A257: 145 | B257: 50 | C257: Internationaler Steckdosenadapter auf Wunsch | D257: 1
A258: 146 | B258: 51 | C258: Mindestens zwei Trinkgläser auf Untersetzer (z.B. Serviette) | D258: 1
A259: 147 | B259: 52 | C259: Getränke im Roomservice (4* - 16h; 5* - 24h) | D259: 1
A260: 148 | B260: 53 | C260: Speisen im Roomservice (4* - 14h; 5* - 24h) | D260: 1
A261: 149 | B261: 54 | C261: Frühstückskarte im Roomservice | D261: 1
... 387 more rows

Sheet SPA
C7: Fachverband Hotellerie
C11: Fragenkatalog für Mystery Guest-Check
C18: Arbeitsunterlage, 14.4.2015
C24: Dies ist die Auflistung der erforderlichen Prüfkriterien für Firmen, die einen Mystery-Test im Rahmen der Österreichischen Hotelklassifizierung durchführen. Über die Listung einer Firma entscheidet die Lenkungskommission bzw. der Fachverband Hotellerie nach Prüfung der Voraussetzungen.
C26: positiv erfülltes Kriterium | D26: 1
C27: negativ erfülltes Kriterium | D27: 0
C30: 1. Web-Auftritt
E31: Kommentar
A32: 1 | B32: 1 | C32: Nachvollziehbare Webadresse | D32: 1
A33: 2 | B33: 2 | C33: Funktionieren alle Links | D33: 1
A34: 3 | B34: 3 | C34: Übersichtlichkeit | D34: 1
A35: 4 | B35: 4 | C35: Such-Funktion | D35: 1
A36: 5 | B36: 5 | C36: Integriertes Gästefeedback | D36: 1
A37: 6 | B37: 6 | C37: Tipp-, Rechtschreib- und Grammatikfehler | D37: 1
A38: 7 | B38: 7 | C38: Aussagekräftiger, realistischer Auftritt mit Hotelbildern | D38: 1
A39: 8 | B39: 8 | C39: Aktualität | D39: 1
A40: 9 | B40: 9 | C40: Impressum | D40: 1
A41: 10 | B41: 10 | C41: Übersetzung in mindestens eine Fremdsprache (ab 3* verpflichtend) | D41: 1
A42: 11 | B42: 11 | C42: Kontaktangabe (Email, Telefon, etc.) | D42: 1
A43: 12 | B43: 12 | C43: Online-Buchbarkeit auf eigener Website | D43: 1
A44: 13 | B44: 13 | C44: Anfahrtsplan | D44: 1
A45: 14 | B45: 14 | C45: Allgemeinen Geschäftsbedingungen oder Stornobedingungen vorhanden | D45: 1
C46: Anzahl der erfüllten Kriterien | D46: =SUM(D32:D45) -> 14
C47: Multiplikation der Anzahl der erfüllten Kriterien mit | D47: =D695 -> 0.2475247525
C48: Maximale Summe | D48: =D47*B45 -> 3.465346535
C49: Erreichte Punktanzahl | D49: =D46*D47 -> 3.465346535
C51: Kommentar
C53: 2. E-Mail und Post
C55: Beantwortung Ihrer E-Mail Anfrage, | E55: Kommentar
A56: 15 | B56: 1 | C56: Innerhalb … Stunden ab Anfrage (3*S - 12; 4*S - 8; 5*/5*S - 4) | D56: 1
A57: 16 | B57: 2 | C57: Qualität (Schreibstil, Wortwahl, korrekte Anrede, Rechtsschreibung) | D57: 1
A58: 17 | B58: 3 | C58: Informationsgehalt (z.B. Zusatzangebote), | D58: 1
A59: 18 | B59: 4 | C59: Individuelle Bearbeitung | D59: 1
A60: 19 | B60: 5 | C60: Bei Angebot: Angaben zu Stornobedingungen, | D60: 1
C64: Reservierungs-Bestätigung (E-Mail, Fax) als Antwort auf Ihre Buchung | E64: Kommentar
A65: 20 | B65: 6 | C65: Innerhalb … Stunden ab Reservierung (3*S - 24; 4*S - 12; 5*/5*S - 8) | D65: 1
A66: 21 | B66: 7 | C66: Qualität (Schreibstil, Wortwahl, korrekte Anrede, Rechtsschreibung) | D66: 1
A67: 22 | B67: 8 | C67: Informationsgehalt (u.a. Aktuelle Anfahrtsbeschreibung), | D67: 1
A68: 23 | B68: 9 | C68: Angaben zu Stornobedingungen | D68: 1
C72: Unterlagen per Post | E72: Kommentar
A73: 24 | B73: 10 | C73: Zusendung innerhalb von 3 Werktagen | D73: 1
A74: 25 | B74: 11 | C74: Begleitschreiben | D74: 1
A75: 26 | B75: 12 | C75: Qualität (Schreibstil, Wortwahl, korrekte Anrede, Rechtsschreibung) | D75: 1
A76: 27 | B76: 13 | C76: Informationsgehalt (z.B. Zusatzangebote), | D76: 1
A77: 28 | B77: 14 | C77: Individuelle Bearbeitung | D77: 1
A78: 29 | B78: 15 | C78: Qualitativ entsprechende Unterlagen, Prospekte | D78: 1
C79: Anzahl der erfüllten Kriterien | D79: =SUM(D56:D78) -> 15
C80: Multiplikation der Anzahl der erfüllten Kriterien mit | D80: =D695 -> 0.2475247525
C81: Maximale Summe | D81: =D80*B78 -> 3.712871287
C82: Erreichte Punktanzahl | D82: =D80*D79 -> 3.712871287
C84: Kommentar
C87: 3. Telefon
E88: Kommentar
A89: 30 | B89: 1 | C89: Wartezeit (3*S - 1 Min; 4*S - 30 Sek; 5*/5*S - 15 Sek) | D89: 1
A90: 31 | B90: 2 | C90: Während der Wartezeit Text- bzw. Tonschleife | D90: 1
A91: 32 | B91: 3 | C91: Herzlichkeit | D91: 1
A92: 33 | B92: 4 | C92: Klare deutliche Stimme und Aussprache | D92: 1
A93: 34 | B93: 5 | C93: Mit Namen angesprochen | D93: 1
A94: 35 | B94: 6 | C94: Vollständige Datenaufnahme (z.B. Adresse, Tel, Email-Nachfrage), | D94: 1
A95: 36 | B95: 7 | C95: Fachliche Kompetenz | D95: 1
A96: 37 | B96: 8 | C96: An- und Abreisedatum wiederholt und bestätigt | D96: 1
A97: 38 | B97: 9 | C97: Informationen über Kategorien | D97: 1
A98: 39 | B98: 10 | C98: Informationen über Preise | D98: 1
A99: 40 | B99: 11 | C99: Informationen über Zahlungsmodalitäten | D99: 1
A100: 41 | B100: 12 | C100: Informationen über Leistungen | D100: 1
A101: 42 | B101: 13 | C101: Informationen über Check-in-Zeiten | D101: 1
A102: 43 | B102: 14 | C102: Informationen über Zusatzangebote | D102: 1
A103: 44 | B103: 15 | C103: Anfahrts-, Wegbeschreibung | D103: 1
A104: 45 | B104: 16 | C104: Angebot zur vorläufigen Einbuchung | D104: 1
A105: 46 | B105: 17 | C105: Hinweis auf Stornobedingungen | D105: 1
A106: 47 | B106: 18 | C106: Freundliche Verabschiedung und Dank | D106: 1
C107: Anzahl der erfüllten Kriterien | D107: =SUM(D89:D106) -> 18
C108: Multiplikation der Anzahl der erfüllten Kriterien mit | D108: =D695 -> 0.2475247525
C109: Maximale Summe | D109: =D108*B106 -> 4.455445545
C110: Erreichte Punktanzahl | D110: =D108*D107 -> 4.455445545
C112: Kommentar
C115: 4. Anreise und Außenanlage
E116: Kommentar
A117: 48 | B117: 1 | C117: Auffindbarkeit (z.B. Beschilderung im Ort) | D117: 1
A118: 49 | B118: 2 | C118: Zufahrtsmöglichkeit | D118: 1
A119: 50 | B119: 3 | C119: Parkplätze | D119: 1
A120: 51 | B120: 4 | C120: Garagenplätze | D120: 1
A121: 52 | B121: 5 | C121: Beleuchtung | D121: 1
A122: 53 | B122: 6 | C122: Gepäckservice | D122: 1
A123: 54 | B123: 7 | C123: Einfache Orientierung | D123: 1
A124: 55 | B124: 8 | C124: Sauberkeit und Zustand | D124: 1
A125: 56 | B125: 9 | C125: Parkservice (z.B. Doorman, Wagenmeiser) | D125: 1
C126: Anzahl der erfüllten Kriterien | D126: =SUM(D117:D125) -> 9
C127: Multiplikation der Anzahl der erfüllten Kriterien mit | D127: =D695 -> 0.2475247525
C128: Maximale Summe | D128: =D127*B125 -> 2.227722772
C129: Erreichte Punktanzahl | D129: =D127*D126 -> 2.227722772
C131: Kommentar
C134: 5. Check-In
C136: Eingang | E136: Kommentar
A137: 57 | B137: 1 | C137: Raumklima (Geruch) | D137: 1
A138: 58 | B138: 2 | C138: Raumtemperatur | D138: 1
A139: 59 | B139: 3 | C139: Beleuchtung ausreichend | D139: 1
A140: 60 | B140: 4 | C140: Ambiente/Atmosphäre | D140: 1
A141: 61 | B141: 5 | C141: Entsprechend qualitatives Mobiliar | D141: 1
A142: 62 | B142: 6 | C142: Sauberkeit und Ordnung | D142: 1
A143: 63 | B143: 7 | C143: Stimmige Dekorationen | D143: 1
A144: 64 | B144: 8 | C144: Großzügiger Sitzbereich für Gäste | D144: 1
A145: 65 | B145: 9 | C145: Erscheinungsbild Check-In-Bereich (Front Office - Sauberkeit, Ordnung) | D145: 1
C149: Front Office Mitarbeiter | E149: Kommentar
A150: 66 | B150: 10 | C150: Anwesenheit | D150: 1
A151: 67 | B151: 11 | C151: Begrüßung (z.B. Welcome Drink) | D151: 1
A152: 68 | B152: 12 | C152: Herzlichkeit, Freundlichkeit | D152: 1
A153: 69 | B153: 13 | C153: Erscheinungsbild Mitarbeiter (z.B. Uniform, Namensschild) | D153: 1
A154: 70 | B154: 14 | C154: Fachkompetenz | D154: 1
A155: 71 | B155: 15 | C155: Fremdsprachenkenntnisse | D155: 1
A156: 72 | B156: 16 | C156: Aufmerksamkeit | D156: 1
A157: 73 | B157: 17 | C157: Sorgfältigkeit | D157: 1
A158: 74 | B158: 18 | C158: Effizienz (Schnelligkeit, Flexibilität) | D158: 1
A159: 75 | B159: 19 | C159: Hilfsbereitschaft | D159: 1
A160: 76 | B160: 20 | C160: Klare, gut verständliche Aussprache | D160: 1
A161: 77 | B161: 21 | C161: Gast mit Namen angesprochen | D161: 1
A162: 78 | B162: 22 | C162: Vorbereiteter Meldezettel | D162: 1
A163: 79 | B163: 23 | C163: Gepäcksservice angeboten | D163: 1
A164: 80 | B164: 24 | C164: Begleitung auf das Zimmer angeboten | D164: 1
A165: 81 | B165: 25 | C165: Allgemeine Haus-Informationen angeboten bzw. gegeben | D165: 1
A166: 82 | B166: 26 | C166: Angenehmen Aufenthalt gewünscht | D166: 1
C170: Begleitung zum Zimmer | E170: Kommentar
A171: 83 | B171: 27 | C171: Erscheinungsbild des Mitarbeiters | D171: 1
A172: 84 | B172: 28 | C172: Freundlichkeit, Konversation | D172: 1
C176: Rooming | E176: Kommentar
A177: 85 | B177: 29 | C177: Hinweis auf Hauptschalter (für Strom im Zimmer) | D177: 1
A178: 86 | B178: 30 | C178: Hinweis auf Heizung oder Klimaanlage | D178: 1
A179: 87 | B179: 31 | C179: Telefon (schriftliche Infos ausreichend) | D179: 1
A180: 88 | B180: 32 | C180: Telefonverzeichnis bzw. -nummern (für Zimmerservice) - schriftliche Infos ausreichend | D180: 1
A181: 89 | B181: 33 | C181: Minibar oder Maxibar (bis 4*) auf jeder Etage (schriftliche Infos ausreichend) | D181: 1
A182: 90 | B182: 34 | C182: Safe (schriftliche Infos ausreichend) | D182: 1
A183: 91 | B183: 35 | C183: Wäscherei-Service (schriftliche Infos ausreichend) | D183: 1
A184: 92 | B184: 36 | C184: Bügel-Service (schriftliche Infos ausreichend) | D184: 1
A185: 93 | B185: 37 | C185: Öffnungszeiten Restaurant, Bar (schriftliche Infos ausreichend) | D185: 1
A186: 94 | B186: 38 | C186: Zeitangabe Frühstück (schriftliche Infos ausreichend) | D186: 1
A187: 95 | B187: 39 | C187: Rezeption 24 Std. erreichbar und … Std. besetzt (3*S - 14; 4*S - 16; 5*/5*S - 24) | D187: 1
C188: Anzahl der erfüllten Kriterien | D188: =SUM(D137:D187) -> 39
C189: Multiplikation der Anzahl der erfüllten Kriterien mit | D189: =D695 -> 0.2475247525
C190: Maximale Summe | D190: =D189*B187 -> 9.653465347
C191: Erreichte Punktanzahl | D191: =D189*D188 -> 9.653465347
C193: Kommentar
C196: 6. Zimmer
C198: Erster Eindruck und Allgemeiner Charakter | E198: Kommentar
A199: 96 | B199: 1 | C199: Raumklima (Frischer Geruch) | D199: 1
A200: 97 | B200: 2 | C200: Angenehme Temperatur | D200: 1
A201: 98 | B201: 3 | C201: Atmosphäre (Wohlfühlcharakter) | D201: 1
A202: 99 | B202: 4 | C202: Geräuschpegel (Ruhe) | D202: 1
A203: 100 | B203: 5 | C203: Entsprechendes Mobiliar | D203: 1
A204: 101 | B204: 6 | C204: Sauberkeit | D204: 1
A205: 102 | B205: 7 | C205: Willkommensbrief/-karte | D205: 1
A206: 103 | B206: 8 | C206: Willkommensgruß (z.B. Blumen, Obst, Konfekt…) | D206: 1
A207: 104 | B207: 9 | C207: Türschloss in einwandfreiem Zustand | D207: 1
C211: Das Bett | E211: Kommentar
A212: 105 | B212: 10 | C212: Dem Hotelstandard angemessen | D212: 1
A213: 106 | B213: 11 | C213: Qualität der Bettbezüge angemessen | D213: 1
A214: 107 | B214: 12 | C214: Matratze/Liegekomfort | D214: 1
A215: 108 | B215: 13 | C215: Bettdecken der Jahreszeit angepasst | D215: 1
A216: 109 | B216: 14 | C216: Zusatzkissen auf Wunsch (kein Zierkissen) | D216: 1
A217: 110 | B217: 15 | C217: Zusatzdecke auf Wunsch | D217: 1
A218: 111 | B218: 16 | C218: Zwei Kopfkissen pro Gast (kein Zierkissen) | D218: 1
A219: 112 | B219: 17 | C219: Auswahl verschiedener Kopfkissen | D219: 1
A220: 113 | B220: 18 | C220: Allergikerfreundliche Bettwäsche auf Wunsch | D220: 1
C221: Einrichtung | E221: Kommentar
A222: 114 | B222: 19 | C222: Qualität und Zustand der Vorhänge | D222: 1
A223: 115 | B223: 20 | C223: Verdunkelung mit Vorhängen möglich | D223: 1
A224: 116 | B224: 21 | C224: Schalter, Steckdosen leicht erreichbar | D224: 1
A225: 117 | B225: 22 | C225: Einwandfreie Wände | D225: 1
A226: 118 | B226: 23 | C226: Einwandfreie Beleuchtung | D226: 1
A227: 119 | B227: 24 | C227: Einwandfreie Einrichtung (Mobiliar) | D227: 1
A228: 120 | B228: 25 | C228: Angemessene Anzahl einheitlicher Kleiderbügel (Kein Draht) bis inkl. 3*; verschiedene Bügelarten 4*, 5*; | D228: 1
A229: 121 | B229: 26 | C229: Geräumige Ablagemöglichkeiten | D229: 1
A230: 122 | B230: 27 | C230: Geräumige Hängevorrichtung in den Kästen | D230: 1
C234: Ausstattung und Services | E234: Kommentar
A235: 123 | B235: 28 | C235: Radio- und TV-Programme gut eingestellt | D235: 1
A236: 124 | B236: 29 | C236: Programmverzeichnis vorhanden | D236: 1
A237: 125 | B237: 30 | C237: Aktuelles Fernsehprogramm aufgelegt | D237: 1
A238: 126 | B238: 31 | C238: Schreibmappe mit Schreibgeräten (ab 5* verpflichtend) | D238: 1
A239: 127 | B239: 32 | C239: Telefon mit der Möglichkeit direkt nach innen und außen zu telefonieren | D239: 1
A240: 128 | B240: 33 | C240: Mindestens zweisprachige Bedienungsanleitung für Telefon | D240: 1
A241: 129 | B241: 34 | C241: Schreibblock und einen Bleistift neben Telefon | D241: 1
A242: 130 | B242: 35 | C242: Modemanschluss im Betrieb (bzw. gleichwertiger Internetzugang für den Gast verfügbar) | D242: 1
A243: 131 | B243: 36 | C243: Internetanschluss im Zimmer (W-Lan oder Buchse) | D243: 1
A244: 132 | B244: 37 | C244: Internet-Endgerät auf dem Zimmer auf Wunsch | D244: 1
A245: 133 | B245: 38 | C245: Einwandfreie Funktionalität aller elektrischen Einrichtungen (z.B. Licht, TV, Fön) | D245: 1
A246: 134 | B246: 39 | C246: Safe im Zimmer | D246: 1
A247: 135 | B247: 40 | C247: Wecker (oder Weckfunktion über das TV-Gerät, Telefon) | D247: 1
A248: 136 | B248: 41 | C248: Alternatives Weckservice (Verlässlichkeit, Freundlichkeit) | D248: 1
A249: 137 | B249: 42 | C249: "Bitte nicht stören/Bitte aufräumen" Angabemöglichkeit vorhanden | D249: 1
A250: 138 | B250: 43 | C250: Zustand und Aktualität der aufgelegten Info-Mappe | D250: 1
A251: 139 | B251: 44 | C251: Sicherheitsbestimmungen (z.B. Brandschutz, Fluchtwege) sichtbar | D251: 1
A252: 140 | B252: 45 | C252: Zimmerpreise aufgehängt oder in Infomappe | D252: 1
A253: 141 | B253: 46 | C253: Aufgelegtes Gästemagazin | D253: 1
A254: 142 | B254: 47 | C254: Zeitungs-, Magazinservice | D254: 1
A255: 143 | B255: 48 | C255: Mehrsprachiger Serviceleitfaden A-Z (3*S: mind. zweisprachig; 4*S, 5*, 5*S: mind. dreisprachig) | D255: 1
A256: 144 | B256: 49 | C256: Ladegeräte/Adapter auf Wunsch (z.B. für elektronische Geräte wie Handys, Tabletts..) | D256: 1
A257: 145 | B257: 50 | C257: Internationaler Steckdosenadapter auf Wunsch | D257: 1
A258: 146 | B258: 51 | C258: Mindestens zwei Trinkgläser auf Untersetzer (z.B. Serviette) | D258: 1
A259: 147 | B259: 52 | C259: Getränke im Roomservice (4* - 16h; 5* - 24h) | D259: 1
A260: 148 | B260: 53 | C260: Speisen im Roomservice (4* - 14h; 5* - 24h) | D260: 1
A261: 149 | B261: 54 | C261: Frühstückskarte im Roomservice | D261: 1
... 356 more rows

Sheet Freizeit
C7: Fachverband Hotellerie
C11: Fragenkatalog für Mystery Guest-Check
C18: Arbeitsunterlage, 14.4.2015
C24: Dies ist die Auflistung der erforderlichen Prüfkriterien für Firmen, die einen Mystery-Test im Rahmen der Österreichischen Hotelklassifizierung durchführen. Über die Listung einer Firma entscheidet die Lenkungskommission bzw. der Fachverband Hotellerie nach Prüfung der Voraussetzungen.
C26: positiv erfülltes Kriterium | D26: 1
C27: negativ erfülltes Kriterium | D27: 0
C30: 1. Web-Auftritt
E31: Kommentar
A32: 1 | B32: 1 | C32: Nachvollziehbare Webadresse | D32: 1
A33: 2 | B33: 2 | C33: Funktionieren alle Links | D33: 1
A34: 3 | B34: 3 | C34: Übersichtlichkeit | D34: 1
A35: 4 | B35: 4 | C35: Such-Funktion | D35: 1
A36: 5 | B36: 5 | C36: Integriertes Gästefeedback | D36: 1
A37: 6 | B37: 6 | C37: Tipp-, Rechtschreib- und Grammatikfehler | D37: 1
A38: 7 | B38: 7 | C38: Aussagekräftiger, realistischer Auftritt mit Hotelbildern | D38: 1
A39: 8 | B39: 8 | C39: Aktualität | D39: 1
A40: 9 | B40: 9 | C40: Impressum | D40: 1
A41: 10 | B41: 10 | C41: Übersetzung in mindestens eine Fremdsprache (ab 3* verpflichtend) | D41: 1
A42: 11 | B42: 11 | C42: Kontaktangabe (Email, Telefon, etc.) | D42: 1
A43: 12 | B43: 12 | C43: Online-Buchbarkeit auf eigener Website | D43: 1
A44: 13 | B44: 13 | C44: Anfahrtsplan | D44: 1
A45: 14 | B45: 14 | C45: Allgemeinen Geschäftsbedingungen oder Stornobedingungen vorhanden | D45: 1
C46: Anzahl der erfüllten Kriterien | D46: =SUM(D32:D45) -> 14
C47: Multiplikation der Anzahl der erfüllten Kriterien mit | D47: =D696 -> 0.2481389578
C48: Maximale Summe | D48: =D47*B45 -> 3.473945409
C49: Erreichte Punktanzahl | D49: =D46*D47 -> 3.473945409
C51: Kommentar
C53: 2. E-Mail und Post
C55: Beantwortung Ihrer E-Mail Anfrage, | E55: Kommentar
A56: 15 | B56: 1 | C56: Innerhalb … Stunden ab Anfrage (3*S - 12; 4*S - 8; 5*/5*S - 4) | D56: 1
A57: 16 | B57: 2 | C57: Qualität (Schreibstil, Wortwahl, korrekte Anrede, Rechtsschreibung) | D57: 1
A58: 17 | B58: 3 | C58: Informationsgehalt (z.B. Zusatzangebote), | D58: 1
A59: 18 | B59: 4 | C59: Individuelle Bearbeitung | D59: 1
A60: 19 | B60: 5 | C60: Bei Angebot: Angaben zu Stornobedingungen, | D60: 1
C64: Reservierungs-Bestätigung (E-Mail, Fax) als Antwort auf Ihre Buchung | E64: Kommentar
A65: 20 | B65: 6 | C65: Innerhalb … Stunden ab Reservierung (3*S - 24; 4*S - 12; 5*/5*S - 8) | D65: 1
A66: 21 | B66: 7 | C66: Qualität (Schreibstil, Wortwahl, korrekte Anrede, Rechtsschreibung) | D66: 1
A67: 22 | B67: 8 | C67: Informationsgehalt (u.a. Aktuelle Anfahrtsbeschreibung), | D67: 1
A68: 23 | B68: 9 | C68: Angaben zu Stornobedingungen | D68: 1
C72: Unterlagen per Post | E72: Kommentar
A73: 24 | B73: 10 | C73: Zusendung innerhalb von 3 Werktagen | D73: 1
A74: 25 | B74: 11 | C74: Begleitschreiben | D74: 1
A75: 26 | B75: 12 | C75: Qualität (Schreibstil, Wortwahl, korrekte Anrede, Rechtsschreibung) | D75: 1
A76: 27 | B76: 13 | C76: Informationsgehalt (z.B. Zusatzangebote), | D76: 1
A77: 28 | B77: 14 | C77: Individuelle Bearbeitung | D77: 1
A78: 29 | B78: 15 | C78: Qualitativ entsprechende Unterlagen, Prospekte | D78: 1
C79: Anzahl der erfüllten Kriterien | D79: =SUM(D56:D78) -> 15
C80: Multiplikation der Anzahl der erfüllten Kriterien mit | D80: =D696 -> 0.2481389578
C81: Maximale Summe | D81: =D80*B78 -> 3.722084367
C82: Erreichte Punktanzahl | D82: =D80*D79 -> 3.722084367
C84: Kommentar
C87: 3. Telefon
E88: Kommentar
A89: 30 | B89: 1 | C89: Wartezeit (3*S - 1 Min; 4*S - 30 Sek; 5*/5*S - 15 Sek) | D89: 1
A90: 31 | B90: 2 | C90: Während der Wartezeit Text- bzw. Tonschleife | D90: 1
A91: 32 | B91: 3 | C91: Herzlichkeit | D91: 1
A92: 33 | B92: 4 | C92: Klare deutliche Stimme und Aussprache | D92: 1
A93: 34 | B93: 5 | C93: Mit Namen angesprochen | D93: 1
A94: 35 | B94: 6 | C94: Vollständige Datenaufnahme (z.B. Adresse, Tel, Email-Nachfrage), | D94: 1
A95: 36 | B95: 7 | C95: Fachliche Kompetenz | D95: 1
A96: 37 | B96: 8 | C96: An- und Abreisedatum wiederholt und bestätigt | D96: 1
A97: 38 | B97: 9 | C97: Informationen über Kategorien | D97: 1
A98: 39 | B98: 10 | C98: Informationen über Preise | D98: 1
A99: 40 | B99: 11 | C99: Informationen über Zahlungsmodalitäten | D99: 1
A100: 41 | B100: 12 | C100: Informationen über Leistungen | D100: 1
A101: 42 | B101: 13 | C101: Informationen über Check-in-Zeiten | D101: 1
A102: 43 | B102: 14 | C102: Informationen über Zusatzangebote | D102: 1
A103: 44 | B103: 15 | C103: Anfahrts-, Wegbeschreibung | D103: 1
A104: 45 | B104: 16 | C104: Angebot zur vorläufigen Einbuchung | D104: 1
A105: 46 | B105: 17 | C105: Hinweis auf Stornobedingungen | D105: 1
A106: 47 | B106: 18 | C106: Freundliche Verabschiedung und Dank | D106: 1
C107: Anzahl der erfüllten Kriterien | D107: =SUM(D89:D106) -> 18
C108: Multiplikation der Anzahl der erfüllten Kriterien mit | D108: =D696 -> 0.2481389578
C109: Maximale Summe | D109: =D108*B106 -> 4.466501241
C110: Erreichte Punktanzahl | D110: =D108*D107 -> 4.466501241
C112: Kommentar
C115: 4. Anreise und Außenanlage
E116: Kommentar
A117: 48 | B117: 1 | C117: Auffindbarkeit (z.B. Beschilderung im Ort) | D117: 1
A118: 49 | B118: 2 | C118: Zufahrtsmöglichkeit | D118: 1
A119: 50 | B119: 3 | C119: Parkplätze | D119: 1
A120: 51 | B120: 4 | C120: Garagenplätze | D120: 1
A121: 52 | B121: 5 | C121: Beleuchtung | D121: 1
A122: 53 | B122: 6 | C122: Gepäckservice | D122: 1
A123: 54 | B123: 7 | C123: Einfache Orientierung | D123: 1
A124: 55 | B124: 8 | C124: Sauberkeit und Zustand | D124: 1
A125: 56 | B125: 9 | C125: Parkservice (z.B. Doorman, Wagenmeiser) | D125: 1
C126: Anzahl der erfüllten Kriterien | D126: =SUM(D117:D125) -> 9
C127: Multiplikation der Anzahl der erfüllten Kriterien mit | D127: =D696 -> 0.2481389578
C128: Maximale Summe | D128: =D127*B125 -> 2.23325062
C129: Erreichte Punktanzahl | D129: =D127*D126 -> 2.23325062
C131: Kommentar
C134: 5. Check-In
C136: Eingang | E136: Kommentar
A137: 57 | B137: 1 | C137: Raumklima (Geruch) | D137: 1
A138: 58 | B138: 2 | C138: Raumtemperatur | D138: 1
A139: 59 | B139: 3 | C139: Beleuchtung ausreichend | D139: 1
A140: 60 | B140: 4 | C140: Ambiente/Atmosphäre | D140: 1
A141: 61 | B141: 5 | C141: Entsprechend qualitatives Mobiliar | D141: 1
A142: 62 | B142: 6 | C142: Sauberkeit und Ordnung | D142: 1
A143: 63 | B143: 7 | C143: Stimmige Dekorationen | D143: 1
A144: 64 | B144: 8 | C144: Großzügiger Sitzbereich für Gäste | D144: 1
A145: 65 | B145: 9 | C145: Erscheinungsbild Check-In-Bereich (Front Office - Sauberkeit, Ordnung) | D145: 1
C149: Front Office Mitarbeiter | E149: Kommentar
A150: 66 | B150: 10 | C150: Anwesenheit | D150: 1
A151: 67 | B151: 11 | C151: Begrüßung (z.B. Welcome Drink) | D151: 1
A152: 68 | B152: 12 | C152: Herzlichkeit, Freundlichkeit | D152: 1
A153: 69 | B153: 13 | C153: Erscheinungsbild Mitarbeiter (z.B. Uniform, Namensschild) | D153: 1
A154: 70 | B154: 14 | C154: Fachkompetenz | D154: 1
A155: 71 | B155: 15 | C155: Fremdsprachenkenntnisse | D155: 1
A156: 72 | B156: 16 | C156: Aufmerksamkeit | D156: 1
A157: 73 | B157: 17 | C157: Sorgfältigkeit | D157: 1
A158: 74 | B158: 18 | C158: Effizienz (Schnelligkeit, Flexibilität) | D158: 1
A159: 75 | B159: 19 | C159: Hilfsbereitschaft | D159: 1
A160: 76 | B160: 20 | C160: Klare, gut verständliche Aussprache | D160: 1
A161: 77 | B161: 21 | C161: Gast mit Namen angesprochen | D161: 1
A162: 78 | B162: 22 | C162: Vorbereiteter Meldezettel | D162: 1
A163: 79 | B163: 23 | C163: Gepäcksservice angeboten | D163: 1
A164: 80 | B164: 24 | C164: Begleitung auf das Zimmer angeboten | D164: 1
A165: 81 | B165: 25 | C165: Allgemeine Haus-Informationen angeboten bzw. gegeben | D165: 1
A166: 82 | B166: 26 | C166: Angenehmen Aufenthalt gewünscht | D166: 1
C170: Begleitung zum Zimmer | E170: Kommentar
A171: 83 | B171: 27 | C171: Erscheinungsbild des Mitarbeiters | D171: 1
A172: 84 | B172: 28 | C172: Freundlichkeit, Konversation | D172: 1
C176: Rooming | E176: Kommentar
A177: 85 | B177: 29 | C177: Hinweis auf Hauptschalter (für Strom im Zimmer) | D177: 1
A178: 86 | B178: 30 | C178: Hinweis auf Heizung oder Klimaanlage | D178: 1
A179: 87 | B179: 31 | C179: Telefon (schriftliche Infos ausreichend) | D179: 1
A180: 88 | B180: 32 | C180: Telefonverzeichnis bzw. -nummern (für Zimmerservice) - schriftliche Infos ausreichend | D180: 1
A181: 89 | B181: 33 | C181: Minibar oder Maxibar (bis 4*) auf jeder Etage (schriftliche Infos ausreichend) | D181: 1
A182: 90 | B182: 34 | C182: Safe (schriftliche Infos ausreichend) | D182: 1
A183: 91 | B183: 35 | C183: Wäscherei-Service (schriftliche Infos ausreichend) | D183: 1
A184: 92 | B184: 36 | C184: Bügel-Service (schriftliche Infos ausreichend) | D184: 1
A185: 93 | B185: 37 | C185: Öffnungszeiten Restaurant, Bar (schriftliche Infos ausreichend) | D185: 1
A186: 94 | B186: 38 | C186: Zeitangabe Frühstück (schriftliche Infos ausreichend) | D186: 1
A187: 95 | B187: 39 | C187: Rezeption 24 Std. erreichbar und … Std. besetzt (3*S - 14; 4*S - 16; 5*/5*S - 24) | D187: 1
C188: Anzahl der erfüllten Kriterien | D188: =SUM(D137:D187) -> 39
C189: Multiplikation der Anzahl der erfüllten Kriterien mit | D189: =D696 -> 0.2481389578
C190: Maximale Summe | D190: =D189*B187 -> 9.677419355
C191: Erreichte Punktanzahl | D191: =D189*D188 -> 9.677419355
C193: Kommentar
C196: 6. Zimmer
C198: Erster Eindruck und Allgemeiner Charakter | E198: Kommentar
A199: 96 | B199: 1 | C199: Raumklima (Frischer Geruch) | D199: 1
A200: 97 | B200: 2 | C200: Angenehme Temperatur | D200: 1
A201: 98 | B201: 3 | C201: Atmosphäre (Wohlfühlcharakter) | D201: 1
A202: 99 | B202: 4 | C202: Geräuschpegel (Ruhe) | D202: 1
A203: 100 | B203: 5 | C203: Entsprechendes Mobiliar | D203: 1
A204: 101 | B204: 6 | C204: Sauberkeit | D204: 1
A205: 102 | B205: 7 | C205: Willkommensbrief/-karte | D205: 1
A206: 103 | B206: 8 | C206: Willkommensgruß (z.B. Blumen, Obst, Konfekt…) | D206: 1
A207: 104 | B207: 9 | C207: Türschloss in einwandfreiem Zustand | D207: 1
C211: Das Bett | E211: Kommentar
A212: 105 | B212: 10 | C212: Dem Hotelstandard angemessen | D212: 1
A213: 106 | B213: 11 | C213: Qualität der Bettbezüge angemessen | D213: 1
A214: 107 | B214: 12 | C214: Matratze/Liegekomfort | D214: 1
A215: 108 | B215: 13 | C215: Bettdecken der Jahreszeit angepasst | D215: 1
A216: 109 | B216: 14 | C216: Zusatzkissen auf Wunsch (kein Zierkissen) | D216: 1
A217: 110 | B217: 15 | C217: Zusatzdecke auf Wunsch | D217: 1
A218: 111 | B218: 16 | C218: Zwei Kopfkissen pro Gast (kein Zierkissen) | D218: 1
A219: 112 | B219: 17 | C219: Auswahl verschiedener Kopfkissen | D219: 1
A220: 113 | B220: 18 | C220: Allergikerfreundliche Bettwäsche auf Wunsch | D220: 1
C221: Einrichtung | E221: Kommentar
A222: 114 | B222: 19 | C222: Qualität und Zustand der Vorhänge | D222: 1
A223: 115 | B223: 20 | C223: Verdunkelung mit Vorhängen möglich | D223: 1
A224: 116 | B224: 21 | C224: Schalter, Steckdosen leicht erreichbar | D224: 1
A225: 117 | B225: 22 | C225: Einwandfreie Wände | D225: 1
A226: 118 | B226: 23 | C226: Einwandfreie Beleuchtung | D226: 1
A227: 119 | B227: 24 | C227: Einwandfreie Einrichtung (Mobiliar) | D227: 1
A228: 120 | B228: 25 | C228: Angemessene Anzahl einheitlicher Kleiderbügel (Kein Draht) bis inkl. 3*; verschiedene Bügelarten 4*, 5*; | D228: 1
A229: 121 | B229: 26 | C229: Geräumige Ablagemöglichkeiten | D229: 1
A230: 122 | B230: 27 | C230: Geräumige Hängevorrichtung in den Kästen | D230: 1
C234: Ausstattung und Services | E234: Kommentar
A235: 123 | B235: 28 | C235: Radio- und TV-Programme gut eingestellt | D235: 1
A236: 124 | B236: 29 | C236: Programmverzeichnis vorhanden | D236: 1
A237: 125 | B237: 30 | C237: Aktuelles Fernsehprogramm aufgelegt | D237: 1
A238: 126 | B238: 31 | C238: Schreibmappe mit Schreibgeräten (ab 5* verpflichtend) | D238: 1
A239: 127 | B239: 32 | C239: Telefon mit der Möglichkeit direkt nach innen und außen zu telefonieren | D239: 1
A240: 128 | B240: 33 | C240: Mindestens zweisprachige Bedienungsanleitung für Telefon | D240: 1
A241: 129 | B241: 34 | C241: Schreibblock und einen Bleistift neben Telefon | D241: 1
A242: 130 | B242: 35 | C242: Modemanschluss im Betrieb (bzw. gleichwertiger Internetzugang für den Gast verfügbar) | D242: 1
A243: 131 | B243: 36 | C243: Internetanschluss im Zimmer (W-Lan oder Buchse) | D243: 1
A244: 132 | B244: 37 | C244: Internet-Endgerät auf dem Zimmer auf Wunsch | D244: 1
A245: 133 | B245: 38 | C245: Einwandfreie Funktionalität aller elektrischen Einrichtungen (z.B. Licht, TV, Fön) | D245: 1
A246: 134 | B246: 39 | C246: Safe im Zimmer | D246: 1
A247: 135 | B247: 40 | C247: Wecker (oder Weckfunktion über das TV-Gerät, Telefon) | D247: 1
A248: 136 | B248: 41 | C248: Alternatives Weckservice (Verlässlichkeit, Freundlichkeit) | D248: 1
A249: 137 | B249: 42 | C249: "Bitte nicht stören/Bitte aufräumen" Angabemöglichkeit vorhanden | D249: 1
A250: 138 | B250: 43 | C250: Zustand und Aktualität der aufgelegten Info-Mappe | D250: 1
A251: 139 | B251: 44 | C251: Sicherheitsbestimmungen (z.B. Brandschutz, Fluchtwege) sichtbar | D251: 1
A252: 140 | B252: 45 | C252: Zimmerpreise aufgehängt oder in Infomappe | D252: 1
A253: 141 | B253: 46 | C253: Aufgelegtes Gästemagazin | D253: 1
A254: 142 | B254: 47 | C254: Zeitungs-, Magazinservice | D254: 1
A255: 143 | B255: 48 | C255: Mehrsprachiger Serviceleitfaden A-Z (3*S: mind. zweisprachig; 4*S, 5*, 5*S: mind. dreisprachig) | D255: 1
A256: 144 | B256: 49 | C256: Ladegeräte/Adapter auf Wunsch (z.B. für elektronische Geräte wie Handys, Tabletts..) | D256: 1
A257: 145 | B257: 50 | C257: Internationaler Steckdosenadapter auf Wunsch | D257: 1
A258: 146 | B258: 51 | C258: Mindestens zwei Trinkgläser auf Untersetzer (z.B. Serviette) | D258: 1
A259: 147 | B259: 52 | C259: Getränke im Roomservice (4* - 16h; 5* - 24h) | D259: 1
A260: 148 | B260: 53 | C260: Speisen im Roomservice (4* - 14h; 5* - 24h) | D260: 1
A261: 149 | B261: 54 | C261: Frühstückskarte im Roomservice | D261: 1
... 355 more rows

Sheet Tagung
C7: Fachverband Hotellerie
C11: Fragenkatalog für Mystery Guest-Check
C18: Arbeitsunterlage, 14.4.2015
C24: Dies ist die Auflistung der erforderlichen Prüfkriterien für Firmen, die einen Mystery-Test im Rahmen der Österreichischen Hotelklassifizierung durchführen. Über die Listung einer Firma entscheidet die Lenkungskommission bzw. der Fachverband Hotellerie nach Prüfung der Voraussetzungen.
C26: positiv erfülltes Kriterium | D26: 1
C27: negativ erfülltes Kriterium | D27: 0
C30: 1. Web-Auftritt
E31: Kommentar
A32: 1 | B32: 1 | C32: Nachvollziehbare Webadresse | D32: 1
A33: 2 | B33: 2 | C33: Funktionieren alle Links | D33: 1
A34: 3 | B34: 3 | C34: Übersichtlichkeit | D34: 1
A35: 4 | B35: 4 | C35: Such-Funktion | D35: 1
A36: 5 | B36: 5 | C36: Integriertes Gästefeedback | D36: 1
A37: 6 | B37: 6 | C37: Tipp-, Rechtschreib- und Grammatikfehler | D37: 1
A38: 7 | B38: 7 | C38: Aussagekräftiger, realistischer Auftritt mit Hotelbildern | D38: 1
A39: 8 | B39: 8 | C39: Aktualität | D39: 1
A40: 9 | B40: 9 | C40: Impressum | D40: 1
A41: 10 | B41: 10 | C41: Übersetzung in mindestens eine Fremdsprache (ab 3* verpflichtend) | D41: 1
A42: 11 | B42: 11 | C42: Kontaktangabe (Email, Telefon, etc.) | D42: 1
A43: 12 | B43: 12 | C43: Online-Buchbarkeit auf eigener Website | D43: 1
A44: 13 | B44: 13 | C44: Anfahrtsplan | D44: 1
A45: 14 | B45: 14 | C45: Allgemeinen Geschäftsbedingungen oder Stornobedingungen vorhanden | D45: 1
C46: Anzahl der erfüllten Kriterien | D46: =SUM(D32:D45) -> 14
C47: Multiplikation der Anzahl der erfüllten Kriterien mit | D47: =D694 -> 0.2481389578
C48: Maximale Summe | D48: =D47*B45 -> 3.473945409
C49: Erreichte Punktanzahl | D49: =D46*D47 -> 3.473945409
C51: Kommentar
C53: 2. E-Mail und Post
C55: Beantwortung Ihrer E-Mail Anfrage, | E55: Kommentar
A56: 15 | B56: 1 | C56: Innerhalb … Stunden ab Anfrage (3*S - 12; 4*S - 8; 5*/5*S - 4) | D56: 1
A57: 16 | B57: 2 | C57: Qualität (Schreibstil, Wortwahl, korrekte Anrede, Rechtsschreibung) | D57: 1
A58: 17 | B58: 3 | C58: Informationsgehalt (z.B. Zusatzangebote), | D58: 1
A59: 18 | B59: 4 | C59: Individuelle Bearbeitung | D59: 1
A60: 19 | B60: 5 | C60: Bei Angebot: Angaben zu Stornobedingungen, | D60: 1
C64: Reservierungs-Bestätigung (E-Mail, Fax) als Antwort auf Ihre Buchung | E64: Kommentar
A65: 20 | B65: 6 | C65: Innerhalb … Stunden ab Reservierung (3*S - 24; 4*S - 12; 5*/5*S - 8) | D65: 1
A66: 21 | B66: 7 | C66: Qualität (Schreibstil, Wortwahl, korrekte Anrede, Rechtsschreibung) | D66: 1
A67: 22 | B67: 8 | C67: Informationsgehalt (u.a. Aktuelle Anfahrtsbeschreibung), | D67: 1
A68: 23 | B68: 9 | C68: Angaben zu Stornobedingungen | D68: 1
C72: Unterlagen per Post | E72: Kommentar
A73: 24 | B73: 10 | C73: Zusendung innerhalb von 3 Werktagen | D73: 1
A74: 25 | B74: 11 | C74: Begleitschreiben | D74: 1
A75: 26 | B75: 12 | C75: Qualität (Schreibstil, Wortwahl, korrekte Anrede, Rechtsschreibung) | D75: 1
A76: 27 | B76: 13 | C76: Informationsgehalt (z.B. Zusatzangebote), | D76: 1
A77: 28 | B77: 14 | C77: Individuelle Bearbeitung | D77: 1
A78: 29 | B78: 15 | C78: Qualitativ entsprechende Unterlagen, Prospekte | D78: 1
C79: Anzahl der erfüllten Kriterien | D79: =SUM(D56:D78) -> 15
C80: Multiplikation der Anzahl der erfüllten Kriterien mit | D80: =D694 -> 0.2481389578
C81: Maximale Summe | D81: =D80*B78 -> 3.722084367
C82: Erreichte Punktanzahl | D82: =D80*D79 -> 3.722084367
C84: Kommentar
C87: 3. Telefon
E88: Kommentar
A89: 30 | B89: 1 | C89: Wartezeit (3*S - 1 Min; 4*S - 30 Sek; 5*/5*S - 15 Sek) | D89: 1
A90: 31 | B90: 2 | C90: Während der Wartezeit Text- bzw. Tonschleife | D90: 1
A91: 32 | B91: 3 | C91: Herzlichkeit | D91: 1
A92: 33 | B92: 4 | C92: Klare deutliche Stimme und Aussprache | D92: 1
A93: 34 | B93: 5 | C93: Mit Namen angesprochen | D93: 1
A94: 35 | B94: 6 | C94: Vollständige Datenaufnahme (z.B. Adresse, Tel, Email-Nachfrage), | D94: 1
A95: 36 | B95: 7 | C95: Fachliche Kompetenz | D95: 1
A96: 37 | B96: 8 | C96: An- und Abreisedatum wiederholt und bestätigt | D96: 1
A97: 38 | B97: 9 | C97: Informationen über Kategorien | D97: 1
A98: 39 | B98: 10 | C98: Informationen über Preise | D98: 1
A99: 40 | B99: 11 | C99: Informationen über Zahlungsmodalitäten | D99: 1
A100: 41 | B100: 12 | C100: Informationen über Leistungen | D100: 1
A101: 42 | B101: 13 | C101: Informationen über Check-in-Zeiten | D101: 1
A102: 43 | B102: 14 | C102: Informationen über Zusatzangebote | D102: 1
A103: 44 | B103: 15 | C103: Anfahrts-, Wegbeschreibung | D103: 1
A104: 45 | B104: 16 | C104: Angebot zur vorläufigen Einbuchung | D104: 1
A105: 46 | B105: 17 | C105: Hinweis auf Stornobedingungen | D105: 1
A106: 47 | B106: 18 | C106: Freundliche Verabschiedung und Dank | D106: 1
C107: Anzahl der erfüllten Kriterien | D107: =SUM(D89:D106) -> 18
C108: Multiplikation der Anzahl der erfüllten Kriterien mit | D108: =D694 -> 0.2481389578
C109: Maximale Summe | D109: =D108*B106 -> 4.466501241
C110: Erreichte Punktanzahl | D110: =D108*D107 -> 4.466501241
C112: Kommentar
C115: 4. Anreise und Außenanlage
E116: Kommentar
A117: 48 | B117: 1 | C117: Auffindbarkeit (z.B. Beschilderung im Ort) | D117: 1
A118: 49 | B118: 2 | C118: Zufahrtsmöglichkeit | D118: 1
A119: 50 | B119: 3 | C119: Parkplätze | D119: 1
A120: 51 | B120: 4 | C120: Garagenplätze | D120: 1
A121: 52 | B121: 5 | C121: Beleuchtung | D121: 1
A122: 53 | B122: 6 | C122: Gepäckservice | D122: 1
A123: 54 | B123: 7 | C123: Einfache Orientierung | D123: 1
A124: 55 | B124: 8 | C124: Sauberkeit und Zustand | D124: 1
A125: 56 | B125: 9 | C125: Parkservice (z.B. Doorman, Wagenmeiser) | D125: 1
C126: Anzahl der erfüllten Kriterien | D126: =SUM(D117:D125) -> 9
C127: Multiplikation der Anzahl der erfüllten Kriterien mit | D127: =D694 -> 0.2481389578
C128: Maximale Summe | D128: =D127*B125 -> 2.23325062
C129: Erreichte Punktanzahl | D129: =D127*D126 -> 2.23325062
C131: Kommentar
C134: 5. Check-In
C136: Eingang | E136: Kommentar
A137: 57 | B137: 1 | C137: Raumklima (Geruch) | D137: 1
A138: 58 | B138: 2 | C138: Raumtemperatur | D138: 1
A139: 59 | B139: 3 | C139: Beleuchtung ausreichend | D139: 1
A140: 60 | B140: 4 | C140: Ambiente/Atmosphäre | D140: 1
A141: 61 | B141: 5 | C141: Entsprechend qualitatives Mobiliar | D141: 1
A142: 62 | B142: 6 | C142: Sauberkeit und Ordnung | D142: 1
A143: 63 | B143: 7 | C143: Stimmige Dekorationen | D143: 1
A144: 64 | B144: 8 | C144: Großzügiger Sitzbereich für Gäste | D144: 1
A145: 65 | B145: 9 | C145: Erscheinungsbild Check-In-Bereich (Front Office - Sauberkeit, Ordnung) | D145: 1
C149: Front Office Mitarbeiter | E149: Kommentar
A150: 66 | B150: 10 | C150: Anwesenheit | D150: 1
A151: 67 | B151: 11 | C151: Begrüßung (z.B. Welcome Drink) | D151: 1
A152: 68 | B152: 12 | C152: Herzlichkeit, Freundlichkeit | D152: 1
A153: 69 | B153: 13 | C153: Erscheinungsbild Mitarbeiter (z.B. Uniform, Namensschild) | D153: 1
A154: 70 | B154: 14 | C154: Fachkompetenz | D154: 1
A155: 71 | B155: 15 | C155: Fremdsprachenkenntnisse | D155: 1
A156: 72 | B156: 16 | C156: Aufmerksamkeit | D156: 1
A157: 73 | B157: 17 | C157: Sorgfältigkeit | D157: 1
A158: 74 | B158: 18 | C158: Effizienz (Schnelligkeit, Flexibilität) | D158: 1
A159: 75 | B159: 19 | C159: Hilfsbereitschaft | D159: 1
A160: 76 | B160: 20 | C160: Klare, gut verständliche Aussprache | D160: 1
A161: 77 | B161: 21 | C161: Gast mit Namen angesprochen | D161: 1
A162: 78 | B162: 22 | C162: Vorbereiteter Meldezettel | D162: 1
A163: 79 | B163: 23 | C163: Gepäcksservice angeboten | D163: 1
A164: 80 | B164: 24 | C164: Begleitung auf das Zimmer angeboten | D164: 1
A165: 81 | B165: 25 | C165: Allgemeine Haus-Informationen angeboten bzw. gegeben | D165: 1
A166: 82 | B166: 26 | C166: Angenehmen Aufenthalt gewünscht | D166: 1
C170: Begleitung zum Zimmer | E170: Kommentar
A171: 83 | B171: 27 | C171: Erscheinungsbild des Mitarbeiters | D171: 1
A172: 84 | B172: 28 | C172: Freundlichkeit, Konversation | D172: 1
C176: Rooming | E176: Kommentar
A177: 85 | B177: 29 | C177: Hinweis auf Hauptschalter (für Strom im Zimmer) | D177: 1
A178: 86 | B178: 30 | C178: Hinweis auf Heizung oder Klimaanlage | D178: 1
A179: 87 | B179: 31 | C179: Telefon (schriftliche Infos ausreichend) | D179: 1
A180: 88 | B180: 32 | C180: Telefonverzeichnis bzw. -nummern (für Zimmerservice) - schriftliche Infos ausreichend | D180: 1
A181: 89 | B181: 33 | C181: Minibar oder Maxibar (bis 4*) auf jeder Etage (schriftliche Infos ausreichend) | D181: 1
A182: 90 | B182: 34 | C182: Safe (schriftliche Infos ausreichend) | D182: 1
A183: 91 | B183: 35 | C183: Wäscherei-Service (schriftliche Infos ausreichend) | D183: 1
A184: 92 | B184: 36 | C184: Bügel-Service (schriftliche Infos ausreichend) | D184: 1
A185: 93 | B185: 37 | C185: Öffnungszeiten Restaurant, Bar (schriftliche Infos ausreichend) | D185: 1
A186: 94 | B186: 38 | C186: Zeitangabe Frühstück (schriftliche Infos ausreichend) | D186: 1
A187: 95 | B187: 39 | C187: Rezeption 24 Std. erreichbar und … Std. besetzt (3*S - 14; 4*S - 16; 5*/5*S - 24) | D187: 1
C188: Anzahl der erfüllten Kriterien | D188: =SUM(D137:D187) -> 39
C189: Multiplikation der Anzahl der erfüllten Kriterien mit | D189: =D694 -> 0.2481389578
C190: Maximale Summe | D190: =D189*B187 -> 9.677419355
C191: Erreichte Punktanzahl | D191: =D189*D188 -> 9.677419355
C193: Kommentar
C196: 6. Zimmer
C198: Erster Eindruck und Allgemeiner Charakter | E198: Kommentar
A199: 96 | B199: 1 | C199: Raumklima (Frischer Geruch) | D199: 1
A200: 97 | B200: 2 | C200: Angenehme Temperatur | D200: 1
A201: 98 | B201: 3 | C201: Atmosphäre (Wohlfühlcharakter) | D201: 1
A202: 99 | B202: 4 | C202: Geräuschpegel (Ruhe) | D202: 1
A203: 100 | B203: 5 | C203: Entsprechendes Mobiliar | D203: 1
A204: 101 | B204: 6 | C204: Sauberkeit | D204: 1
A205: 102 | B205: 7 | C205: Willkommensbrief/-karte | D205: 1
A206: 103 | B206: 8 | C206: Willkommensgruß (z.B. Blumen, Obst, Konfekt…) | D206: 1
A207: 104 | B207: 9 | C207: Türschloss in einwandfreiem Zustand | D207: 1
C211: Das Bett | E211: Kommentar
A212: 105 | B212: 10 | C212: Dem Hotelstandard angemessen | D212: 1
A213: 106 | B213: 11 | C213: Qualität der Bettbezüge angemessen | D213: 1
A214: 107 | B214: 12 | C214: Matratze/Liegekomfort | D214: 1
A215: 108 | B215: 13 | C215: Bettdecken der Jahreszeit angepasst | D215: 1
A216: 109 | B216: 14 | C216: Zusatzkissen auf Wunsch (kein Zierkissen) | D216: 1
A217: 110 | B217: 15 | C217: Zusatzdecke auf Wunsch | D217: 1
A218: 111 | B218: 16 | C218: Zwei Kopfkissen pro Gast (kein Zierkissen) | D218: 1
A219: 112 | B219: 17 | C219: Auswahl verschiedener Kopfkissen | D219: 1
A220: 113 | B220: 18 | C220: Allergikerfreundliche Bettwäsche auf Wunsch | D220: 1
C221: Einrichtung | E221: Kommentar
A222: 114 | B222: 19 | C222: Qualität und Zustand der Vorhänge | D222: 1
A223: 115 | B223: 20 | C223: Verdunkelung mit Vorhängen möglich | D223: 1
A224: 116 | B224: 21 | C224: Schalter, Steckdosen leicht erreichbar | D224: 1
A225: 117 | B225: 22 | C225: Einwandfreie Wände | D225: 1
A226: 118 | B226: 23 | C226: Einwandfreie Beleuchtung | D226: 1
A227: 119 | B227: 24 | C227: Einwandfreie Einrichtung (Mobiliar) | D227: 1
A228: 120 | B228: 25 | C228: Angemessene Anzahl einheitlicher Kleiderbügel (Kein Draht) bis inkl. 3*; verschiedene Bügelarten 4*, 5*; | D228: 1
A229: 121 | B229: 26 | C229: Geräumige Ablagemöglichkeiten | D229: 1
A230: 122 | B230: 27 | C230: Geräumige Hängevorrichtung in den Kästen | D230: 1
C234: Ausstattung und Services | E234: Kommentar
A235: 123 | B235: 28 | C235: Radio- und TV-Programme gut eingestellt | D235: 1
A236: 124 | B236: 29 | C236: Programmverzeichnis vorhanden | D236: 1
A237: 125 | B237: 30 | C237: Aktuelles Fernsehprogramm aufgelegt | D237: 1
A238: 126 | B238: 31 | C238: Schreibmappe mit Schreibgeräten (ab 5* verpflichtend) | D238: 1
A239: 127 | B239: 32 | C239: Telefon mit der Möglichkeit direkt nach innen und außen zu telefonieren | D239: 1
A240: 128 | B240: 33 | C240: Mindestens zweisprachige Bedienungsanleitung für Telefon | D240: 1
A241: 129 | B241: 34 | C241: Schreibblock und einen Bleistift neben Telefon | D241: 1
A242: 130 | B242: 35 | C242: Modemanschluss im Betrieb (bzw. gleichwertiger Internetzugang für den Gast verfügbar) | D242: 1
A243: 131 | B243: 36 | C243: Internetanschluss im Zimmer (W-Lan oder Buchse) | D243: 1
A244: 132 | B244: 37 | C244: Internet-Endgerät auf dem Zimmer auf Wunsch | D244: 1
A245: 133 | B245: 38 | C245: Einwandfreie Funktionalität aller elektrischen Einrichtungen (z.B. Licht, TV, Fön) | D245: 1
A246: 134 | B246: 39 | C246: Safe im Zimmer | D246: 1
A247: 135 | B247: 40 | C247: Wecker (oder Weckfunktion über das TV-Gerät, Telefon) | D247: 1
A248: 136 | B248: 41 | C248: Alternatives Weckservice (Verlässlichkeit, Freundlichkeit) | D248: 1
A249: 137 | B249: 42 | C249: "Bitte nicht stören/Bitte aufräumen" Angabemöglichkeit vorhanden | D249: 1
A250: 138 | B250: 43 | C250: Zustand und Aktualität der aufgelegten Info-Mappe | D250: 1
A251: 139 | B251: 44 | C251: Sicherheitsbestimmungen (z.B. Brandschutz, Fluchtwege) sichtbar | D251: 1
A252: 140 | B252: 45 | C252: Zimmerpreise aufgehängt oder in Infomappe | D252: 1
A253: 141 | B253: 46 | C253: Aufgelegtes Gästemagazin | D253: 1
A254: 142 | B254: 47 | C254: Zeitungs-, Magazinservice | D254: 1
A255: 143 | B255: 48 | C255: Mehrsprachiger Serviceleitfaden A-Z (3*S: mind. zweisprachig; 4*S, 5*, 5*S: mind. dreisprachig) | D255: 1
A256: 144 | B256: 49 | C256: Ladegeräte/Adapter auf Wunsch (z.B. für elektronische Geräte wie Handys, Tabletts..) | D256: 1
A257: 145 | B257: 50 | C257: Internationaler Steckdosenadapter auf Wunsch | D257: 1
A258: 146 | B258: 51 | C258: Mindestens zwei Trinkgläser auf Untersetzer (z.B. Serviette) | D258: 1
A259: 147 | B259: 52 | C259: Getränke im Roomservice (4* - 16h; 5* - 24h) | D259: 1
A260: 148 | B260: 53 | C260: Speisen im Roomservice (4* - 14h; 5* - 24h) | D260: 1
A261: 149 | B261: 54 | C261: Frühstückskarte im Roomservice | D261: 1
... 355 more rows

Sheet ohne Zusatz
C7: Fachverband Hotellerie
C11: Fragenkatalog für Mystery Guest-Check
C18: Arbeitsunterlage, 14.4.2015
C24: Dies ist die Auflistung der erforderlichen Prüfkriterien für Firmen, die einen Mystery-Test im Rahmen der Österreichischen Hotelklassifizierung durchführen. Über die Listung einer Firma entscheidet die Lenkungskommission bzw. der Fachverband Hotellerie nach Prüfung der Voraussetzungen.
C26: positiv erfülltes Kriterium | D26: 1
C27: negativ erfülltes Kriterium | D27: 0
C30: 1. Web-Auftritt
E31: Kommentar
A32: 1 | B32: 1 | C32: Nachvollziehbare Webadresse | D32: 1
A33: 2 | B33: 2 | C33: Funktionieren alle Links | D33: 1
A34: 3 | B34: 3 | C34: Übersichtlichkeit | D34: 1
A35: 4 | B35: 4 | C35: Such-Funktion | D35: 1
A36: 5 | B36: 5 | C36: Integriertes Gästefeedback | D36: 1
A37: 6 | B37: 6 | C37: Tipp-, Rechtschreib- und Grammatikfehler | D37: 1
A38: 7 | B38: 7 | C38: Aussagekräftiger, realistischer Auftritt mit Hotelbildern | D38: 1
A39: 8 | B39: 8 | C39: Aktualität | D39: 1
A40: 9 | B40: 9 | C40: Impressum | D40: 1
A41: 10 | B41: 10 | C41: Übersetzung in mindestens eine Fremdsprache (ab 3* verpflichtend) | D41: 1
A42: 11 | B42: 11 | C42: Kontaktangabe (Email, Telefon, etc.) | D42: 1
A43: 12 | B43: 12 | C43: Online-Buchbarkeit auf eigener Website | D43: 1
A44: 13 | B44: 13 | C44: Anfahrtsplan | D44: 1
A45: 14 | B45: 14 | C45: Allgemeinen Geschäftsbedingungen oder Stornobedingungen vorhanden | D45: 1
C46: Anzahl der erfüllten Kriterien | D46: =SUM(D32:D45) -> 14
C47: Multiplikation der Anzahl der erfüllten Kriterien mit | D47: =D658 -> 0.2631578947
C48: Maximale Summe | D48: =D47*B45 -> 3.684210526
C49: Erreichte Punktanzahl | D49: =D46*D47 -> 3.684210526
C51: Kommentar
C53: 2. E-Mail und Post
C55: Beantwortung Ihrer E-Mail Anfrage, | E55: Kommentar
A56: 15 | B56: 1 | C56: Innerhalb … Stunden ab Anfrage (3*S - 12; 4*S - 8; 5*/5*S - 4) | D56: 1
A57: 16 | B57: 2 | C57: Qualität (Schreibstil, Wortwahl, korrekte Anrede, Rechtsschreibung) | D57: 1
A58: 17 | B58: 3 | C58: Informationsgehalt (z.B. Zusatzangebote), | D58: 1
A59: 18 | B59: 4 | C59: Individuelle Bearbeitung | D59: 1
A60: 19 | B60: 5 | C60: Bei Angebot: Angaben zu Stornobedingungen, | D60: 1
C64: Reservierungs-Bestätigung (E-Mail, Fax) als Antwort auf Ihre Buchung | E64: Kommentar
A65: 20 | B65: 6 | C65: Innerhalb … Stunden ab Reservierung (3*S - 24; 4*S - 12; 5*/5*S - 8) | D65: 1
A66: 21 | B66: 7 | C66: Qualität (Schreibstil, Wortwahl, korrekte Anrede, Rechtsschreibung) | D66: 1
A67: 22 | B67: 8 | C67: Informationsgehalt (u.a. Aktuelle Anfahrtsbeschreibung), | D67: 1
A68: 23 | B68: 9 | C68: Angaben zu Stornobedingungen | D68: 1
C72: Unterlagen per Post | E72: Kommentar
A73: 24 | B73: 10 | C73: Zusendung innerhalb von 3 Werktagen | D73: 1
A74: 25 | B74: 11 | C74: Begleitschreiben | D74: 1
A75: 26 | B75: 12 | C75: Qualität (Schreibstil, Wortwahl, korrekte Anrede, Rechtsschreibung) | D75: 1
A76: 27 | B76: 13 | C76: Informationsgehalt (z.B. Zusatzangebote), | D76: 1
A77: 28 | B77: 14 | C77: Individuelle Bearbeitung | D77: 1
A78: 29 | B78: 15 | C78: Qualitativ entsprechende Unterlagen, Prospekte | D78: 1
C79: Anzahl der erfüllten Kriterien | D79: =SUM(D56:D78) -> 15
C80: Multiplikation der Anzahl der erfüllten Kriterien mit | D80: =D658 -> 0.2631578947
C81: Maximale Summe | D81: =D80*B78 -> 3.947368421
C82: Erreichte Punktanzahl | D82: =D80*D79 -> 3.947368421
C84: Kommentar
C87: 3. Telefon
E88: Kommentar
A89: 30 | B89: 1 | C89: Wartezeit (3*S - 1 Min; 4*S - 30 Sek; 5*/5*S - 15 Sek) | D89: 1
A90: 31 | B90: 2 | C90: Während der Wartezeit Text- bzw. Tonschleife | D90: 1
A91: 32 | B91: 3 | C91: Herzlichkeit | D91: 1
A92: 33 | B92: 4 | C92: Klare deutliche Stimme und Aussprache | D92: 1
A93: 34 | B93: 5 | C93: Mit Namen angesprochen | D93: 1
A94: 35 | B94: 6 | C94: Vollständige Datenaufnahme (z.B. Adresse, Tel, Email-Nachfrage), | D94: 1
A95: 36 | B95: 7 | C95: Fachliche Kompetenz | D95: 1
A96: 37 | B96: 8 | C96: An- und Abreisedatum wiederholt und bestätigt | D96: 1
A97: 38 | B97: 9 | C97: Informationen über Kategorien | D97: 1
A98: 39 | B98: 10 | C98: Informationen über Preise | D98: 1
A99: 40 | B99: 11 | C99: Informationen über Zahlungsmodalitäten | D99: 1
A100: 41 | B100: 12 | C100: Informationen über Leistungen | D100: 1
A101: 42 | B101: 13 | C101: Informationen über Check-in-Zeiten | D101: 1
A102: 43 | B102: 14 | C102: Informationen über Zusatzangebote | D102: 1
A103: 44 | B103: 15 | C103: Anfahrts-, Wegbeschreibung | D103: 1
A104: 45 | B104: 16 | C104: Angebot zur vorläufigen Einbuchung | D104: 1
A105: 46 | B105: 17 | C105: Hinweis auf Stornobedingungen | D105: 1
A106: 47 | B106: 18 | C106: Freundliche Verabschiedung und Dank | D106: 1
C107: Anzahl der erfüllten Kriterien | D107: =SUM(D89:D106) -> 18
C108: Multiplikation der Anzahl der erfüllten Kriterien mit | D108: =D658 -> 0.2631578947
C109: Maximale Summe | D109: =D108*B106 -> 4.736842105
C110: Erreichte Punktanzahl | D110: =D108*D107 -> 4.736842105
C112: Kommentar
C115: 4. Anreise und Außenanlage
E116: Kommentar
A117: 48 | B117: 1 | C117: Auffindbarkeit (z.B. Beschilderung im Ort) | D117: 1
A118: 49 | B118: 2 | C118: Zufahrtsmöglichkeit | D118: 1
A119: 50 | B119: 3 | C119: Parkplätze | D119: 1
A120: 51 | B120: 4 | C120: Garagenplätze | D120: 1
A121: 52 | B121: 5 | C121: Beleuchtung | D121: 1
A122: 53 | B122: 6 | C122: Gepäckservice | D122: 1
A123: 54 | B123: 7 | C123: Einfache Orientierung | D123: 1
A124: 55 | B124: 8 | C124: Sauberkeit und Zustand | D124: 1
A125: 56 | B125: 9 | C125: Parkservice (z.B. Doorman, Wagenmeiser) | D125: 1
C126: Anzahl der erfüllten Kriterien | D126: =SUM(D117:D125) -> 9
C127: Multiplikation der Anzahl der erfüllten Kriterien mit | D127: =D658 -> 0.2631578947
C128: Maximale Summe | D128: =D127*B125 -> 2.368421053
C129: Erreichte Punktanzahl | D129: =D127*D126 -> 2.368421053
C131: Kommentar
C134: 5. Check-In
C136: Eingang | E136: Kommentar
A137: 57 | B137: 1 | C137: Raumklima (Geruch) | D137: 1
A138: 58 | B138: 2 | C138: Raumtemperatur | D138: 1
A139: 59 | B139: 3 | C139: Beleuchtung ausreichend | D139: 1
A140: 60 | B140: 4 | C140: Ambiente/Atmosphäre | D140: 1
A141: 61 | B141: 5 | C141: Entsprechend qualitatives Mobiliar | D141: 1
A142: 62 | B142: 6 | C142: Sauberkeit und Ordnung | D142: 1
A143: 63 | B143: 7 | C143: Stimmige Dekorationen | D143: 1
A144: 64 | B144: 8 | C144: Großzügiger Sitzbereich für Gäste | D144: 1
A145: 65 | B145: 9 | C145: Erscheinungsbild Check-In-Bereich (Front Office - Sauberkeit, Ordnung) | D145: 1
C149: Front Office Mitarbeiter | E149: Kommentar
A150: 66 | B150: 10 | C150: Anwesenheit | D150: 1
A151: 67 | B151: 11 | C151: Begrüßung (z.B. Welcome Drink) | D151: 1
A152: 68 | B152: 12 | C152: Herzlichkeit, Freundlichkeit | D152: 1
A153: 69 | B153: 13 | C153: Erscheinungsbild Mitarbeiter (z.B. Uniform, Namensschild) | D153: 1
A154: 70 | B154: 14 | C154: Fachkompetenz | D154: 1
A155: 71 | B155: 15 | C155: Fremdsprachenkenntnisse | D155: 1
A156: 72 | B156: 16 | C156: Aufmerksamkeit | D156: 1
A157: 73 | B157: 17 | C157: Sorgfältigkeit | D157: 1
A158: 74 | B158: 18 | C158: Effizienz (Schnelligkeit, Flexibilität) | D158: 1
A159: 75 | B159: 19 | C159: Hilfsbereitschaft | D159: 1
A160: 76 | B160: 20 | C160: Klare, gut verständliche Aussprache | D160: 1
A161: 77 | B161: 21 | C161: Gast mit Namen angesprochen | D161: 1
A162: 78 | B162: 22 | C162: Vorbereiteter Meldezettel | D162: 1
A163: 79 | B163: 23 | C163: Gepäcksservice angeboten | D163: 1
A164: 80 | B164: 24 | C164: Begleitung auf das Zimmer angeboten | D164: 1
A165: 81 | B165: 25 | C165: Allgemeine Haus-Informationen angeboten bzw. gegeben | D165: 1
A166: 82 | B166: 26 | C166: Angenehmen Aufenthalt gewünscht | D166: 1
C170: Begleitung zum Zimmer | E170: Kommentar
A171: 83 | B171: 27 | C171: Erscheinungsbild des Mitarbeiters | D171: 1
A172: 84 | B172: 28 | C172: Freundlichkeit, Konversation | D172: 1
C176: Rooming | E176: Kommentar
A177: 85 | B177: 29 | C177: Hinweis auf Hauptschalter (für Strom im Zimmer) | D177: 1
A178: 86 | B178: 30 | C178: Hinweis auf Heizung oder Klimaanlage | D178: 1
A179: 87 | B179: 31 | C179: Telefon (schriftliche Infos ausreichend) | D179: 1
A180: 88 | B180: 32 | C180: Telefonverzeichnis bzw. -nummern (für Zimmerservice) - schriftliche Infos ausreichend | D180: 1
A181: 89 | B181: 33 | C181: Minibar oder Maxibar (bis 4*) auf jeder Etage (schriftliche Infos ausreichend) | D181: 1
A182: 90 | B182: 34 | C182: Safe (schriftliche Infos ausreichend) | D182: 1
A183: 91 | B183: 35 | C183: Wäscherei-Service (schriftliche Infos ausreichend) | D183: 1
A184: 92 | B184: 36 | C184: Bügel-Service (schriftliche Infos ausreichend) | D184: 1
A185: 93 | B185: 37 | C185: Öffnungszeiten Restaurant, Bar (schriftliche Infos ausreichend) | D185: 1
A186: 94 | B186: 38 | C186: Zeitangabe Frühstück (schriftliche Infos ausreichend) | D186: 1
A187: 95 | B187: 39 | C187: Rezeption 24 Std. erreichbar und … Std. besetzt (3*S - 14; 4*S - 16; 5*/5*S - 24) | D187: 1
C188: Anzahl der erfüllten Kriterien | D188: =SUM(D137:D187) -> 39
C189: Multiplikation der Anzahl der erfüllten Kriterien mit | D189: =D658 -> 0.2631578947
C190: Maximale Summe | D190: =D189*B187 -> 10.26315789
C191: Erreichte Punktanzahl | D191: =D189*D188 -> 10.26315789
C193: Kommentar
C196: 6. Zimmer
C198: Erster Eindruck und Allgemeiner Charakter | E198: Kommentar
A199: 96 | B199: 1 | C199: Raumklima (Frischer Geruch) | D199: 1
A200: 97 | B200: 2 | C200: Angenehme Temperatur | D200: 1
A201: 98 | B201: 3 | C201: Atmosphäre (Wohlfühlcharakter) | D201: 1
A202: 99 | B202: 4 | C202: Geräuschpegel (Ruhe) | D202: 1
A203: 100 | B203: 5 | C203: Entsprechendes Mobiliar | D203: 1
A204: 101 | B204: 6 | C204: Sauberkeit | D204: 1
A205: 102 | B205: 7 | C205: Willkommensbrief/-karte | D205: 1
A206: 103 | B206: 8 | C206: Willkommensgruß (z.B. Blumen, Obst, Konfekt…) | D206: 1
A207: 104 | B207: 9 | C207: Türschloss in einwandfreiem Zustand | D207: 1
C211: Das Bett | E211: Kommentar
A212: 105 | B212: 10 | C212: Dem Hotelstandard angemessen | D212: 1
A213: 106 | B213: 11 | C213: Qualität der Bettbezüge angemessen | D213: 1
A214: 107 | B214: 12 | C214: Matratze/Liegekomfort | D214: 1
A215: 108 | B215: 13 | C215: Bettdecken der Jahreszeit angepasst | D215: 1
A216: 109 | B216: 14 | C216: Zusatzkissen auf Wunsch (kein Zierkissen) | D216: 1
A217: 110 | B217: 15 | C217: Zusatzdecke auf Wunsch | D217: 1
A218: 111 | B218: 16 | C218: Zwei Kopfkissen pro Gast (kein Zierkissen) | D218: 1
A219: 112 | B219: 17 | C219: Auswahl verschiedener Kopfkissen | D219: 1
A220: 113 | B220: 18 | C220: Allergikerfreundliche Bettwäsche auf Wunsch | D220: 1
C221: Einrichtung | E221: Kommentar
A222: 114 | B222: 19 | C222: Qualität und Zustand der Vorhänge | D222: 1
A223: 115 | B223: 20 | C223: Verdunkelung mit Vorhängen möglich | D223: 1
A224: 116 | B224: 21 | C224: Schalter, Steckdosen leicht erreichbar | D224: 1
A225: 117 | B225: 22 | C225: Einwandfreie Wände | D225: 1
A226: 118 | B226: 23 | C226: Einwandfreie Beleuchtung | D226: 1
A227: 119 | B227: 24 | C227: Einwandfreie Einrichtung (Mobiliar) | D227: 1
A228: 120 | B228: 25 | C228: Angemessene Anzahl einheitlicher Kleiderbügel (Kein Draht) bis inkl. 3*; verschiedene Bügelarten 4*, 5*; | D228: 1
A229: 121 | B229: 26 | C229: Geräumige Ablagemöglichkeiten | D229: 1
A230: 122 | B230: 27 | C230: Geräumige Hängevorrichtung in den Kästen | D230: 1
C234: Ausstattung und Services | E234: Kommentar
A235: 123 | B235: 28 | C235: Radio- und TV-Programme gut eingestellt | D235: 1
A236: 124 | B236: 29 | C236: Programmverzeichnis vorhanden | D236: 1
A237: 125 | B237: 30 | C237: Aktuelles Fernsehprogramm aufgelegt | D237: 1
A238: 126 | B238: 31 | C238: Schreibmappe mit Schreibgeräten (ab 5* verpflichtend) | D238: 1
A239: 127 | B239: 32 | C239: Telefon mit der Möglichkeit direkt nach innen und außen zu telefonieren | D239: 1
A240: 128 | B240: 33 | C240: Mindestens zweisprachige Bedienungsanleitung für Telefon | D240: 1
A241: 129 | B241: 34 | C241: Schreibblock und einen Bleistift neben Telefon | D241: 1
A242: 130 | B242: 35 | C242: Modemanschluss im Betrieb (bzw. gleichwertiger Internetzugang für den Gast verfügbar) | D242: 1
A243: 131 | B243: 36 | C243: Internetanschluss im Zimmer (W-Lan oder Buchse) | D243: 1
A244: 132 | B244: 37 | C244: Internet-Endgerät auf dem Zimmer auf Wunsch | D244: 1
A245: 133 | B245: 38 | C245: Einwandfreie Funktionalität aller elektrischen Einrichtungen (z.B. Licht, TV, Fön) | D245: 1
A246: 134 | B246: 39 | C246: Safe im Zimmer | D246: 1
A247: 135 | B247: 40 | C247: Wecker (oder Weckfunktion über das TV-Gerät, Telefon) | D247: 1
A248: 136 | B248: 41 | C248: Alternatives Weckservice (Verlässlichkeit, Freundlichkeit) | D248: 1
A249: 137 | B249: 42 | C249: "Bitte nicht stören/Bitte aufräumen" Angabemöglichkeit vorhanden | D249: 1
A250: 138 | B250: 43 | C250: Zustand und Aktualität der aufgelegten Info-Mappe | D250: 1
A251: 139 | B251: 44 | C251: Sicherheitsbestimmungen (z.B. Brandschutz, Fluchtwege) sichtbar | D251: 1
A252: 140 | B252: 45 | C252: Zimmerpreise aufgehängt oder in Infomappe | D252: 1
A253: 141 | B253: 46 | C253: Aufgelegtes Gästemagazin | D253: 1
A254: 142 | B254: 47 | C254: Zeitungs-, Magazinservice | D254: 1
A255: 143 | B255: 48 | C255: Mehrsprachiger Serviceleitfaden A-Z (3*S: mind. zweisprachig; 4*S, 5*, 5*S: mind. dreisprachig) | D255: 1
A256: 144 | B256: 49 | C256: Ladegeräte/Adapter auf Wunsch (z.B. für elektronische Geräte wie Handys, Tabletts..) | D256: 1
A257: 145 | B257: 50 | C257: Internationaler Steckdosenadapter auf Wunsch | D257: 1
A258: 146 | B258: 51 | C258: Mindestens zwei Trinkgläser auf Untersetzer (z.B. Serviette) | D258: 1
A259: 147 | B259: 52 | C259: Getränke im Roomservice (4* - 16h; 5* - 24h) | D259: 1
A260: 148 | B260: 53 | C260: Speisen im Roomservice (4* - 14h; 5* - 24h) | D260: 1
A261: 149 | B261: 54 | C261: Frühstückskarte im Roomservice | D261: 1
... 324 more rows
